{"text_format":"1","workbook":"xlsx","n_sheets":2,"sheets":["Sheet3","Sheet2"],"not_rendered":{"charts":0,"images":17,"macros":1,"external_links":0,"defined_names":0,"comments":0,"pivot_tables":0},"unopened":[],"bounds":{"document_bytes":16777216,"sheet_cells":100000,"rows_first":2000,"rows_last":500,"rows_between":2000,"halvings":0,"cell_chars":16384,"cell_head_chars":4096},"cells_cut":0,"cells_raw":0,"read":"whole","date_system":"1900"}

{"sheet":"Sheet3","index":0,"n_rows":36,"n_cols":11,"rows_kept":36,"cut":false,"hidden":false,"merged":[[4,4,4,7],[13,4,13,7],[4,10,4,12],[23,0,25,15],[0,0,22,2],[0,3,0,13],[0,14,22,15],[13,10,13,12],[11,4,11,7],[11,10,11,12],[21,4,21,7],[21,10,21,12]]}
[]
[]
[]
[]
[null,null,null,null,"الجهاز الأول",null,null,null,null,null,"الجهاز الثالث"]
[]
[]
[]
[]
[]
[]
[null,null,null,null,"00:00:00",null,null,null,null,null,"00:00:00"]
[]
[null,null,null,null,"الجهاز الثاني",null,null,null,null,null,"الجهاز الرابع"]
[]
[]
[]
[]
[]
[]
[]
[null,null,null,null,"00:00:00",null,null,null,null,null,"00:00:00"]
[]
[]
[]
[]
[]
[]
[]
[]
[]
[]
[]
[null,null,null,null,"فتح","اغلاق",null,"النوع"]
[]
[null,null,null,null,"الحساب"]

{"sheet":"Sheet2","index":1,"n_rows":1200,"n_cols":22,"rows_kept":1200,"cut":false,"hidden":false,"merged":[[2,17,2,21],[2,2,2,6],[2,7,2,11],[2,12,2,16]]}
[2.5,5]
[]
[null,null,"الجهاز الأول",null,null,null,null,"الجهاز الثاني",null,null,null,null,"الجهاز الثالث",null,null,null,null,"الجهاز الرابع"]
["م","التاريخ","من ","الي","النوع","المدة","المبلغ","من ","الي","النوع","المدة","المبلغ","من ","الي","النوع","المدة","المبلغ","من ","الي","النوع","المدة","المبلغ"]
[null,"2021-02-28T07:46:18",null,null,null,{"$f":"IF(D5=\"\",\"\",HOUR(D5-C5)*60+MINUTE(D5-C5))","v":""},{"$f":"IF(F5=\"\",\"\",IF(F5/15*$A$1,F5/15*$B$1))","v":""},null,null,null,{"$f":"IF(I5=\"\",\"\",HOUR(I5-H5)*60+MINUTE(I5-H5))","v":""},{"$f":"IF(K5=\"\",\"\",IF(K5/15*$A$1,K5/15*$B$1))","v":""},null,null,null,{"$f":"IF(N5=\"\",\"\",HOUR(N5-M5)*60+MINUTE(N5-M5))","v":""},{"$f":"IF(O5=\"\",\"\",IF(O5/15*$A$1,O5/15*$B$1))","v":""},null,null,null,{"$f":"IF(S5=\"\",\"\",HOUR(S5-R5)*60+MINUTE(S5-R5))","v":""},{"$f":"IF(U5=\"\",\"\",IF(U5/15*$A$1,U5/15*$B$1))","v":""}]
[null,null,null,null,null,{"$f":"IF(D6=\"\",\"\",HOUR(D6-C6)*60+MINUTE(D6-C6))","v":""},{"$f":"IF(F6=\"\",\"\",IF(F6/15*$A$1,F6/15*$B$1))","v":""},null,null,null,{"$f":"IF(I6=\"\",\"\",HOUR(I6-H6)*60+MINUTE(I6-H6))","v":""},{"$f":"IF(K6=\"\",\"\",IF(K6/15*$A$1,K6/15*$B$1))","v":""},null,null,null,{"$f":"IF(N6=\"\",\"\",HOUR(N6-M6)*60+MINUTE(N6-M6))","v":""},{"$f":"IF(O6=\"\",\"\",IF(O6/15*$A$1,O6/15*$B$1))","v":""},null,null,null,{"$f":"IF(S6=\"\",\"\",HOUR(S6-R6)*60+MINUTE(S6-R6))","v":""},{"$f":"IF(U6=\"\",\"\",IF(U6/15*$A$1,U6/15*$B$1))","v":""}]
[null,null,null,null,null,"","",null,null,null,"","",null,null,null,"","",null,null,null,"",""]
[null,null,null,null,null,"","",null,null,null,"","",null,null,null,"","",null,null,null,"",""]
[null,null,null,null,null,"","",null,null,null,"","",null,null,null,"","",null,null,null,"",""]
[null,null,null,null,null,"","",null,null,null,"","",null,null,null,"","",null,null,null,"",""]
[null,null,null,null,null,"","",null,null,null,"","",null,null,null,"","",null,null,null,"",""]
[null,null,null,null,null,"","",null,null,null,"","",null,null,null,"","",null,null,null,"",""]
[null,null,null,null,null,"","",null,null,null,"","",null,null,null,"","",null,null,null,"",""]
[null,null,null,null,null,"","",null,null,null,"","",null,null,null,"","",null,null,null,"",""]
[null,null,null,null,null,"","",null,null,null,"","",null,null,null,"","",null,null,null,"",""]
[null,null,null,null,null,"","",null,null,null,"","",null,null,null,"","",null,null,null,"",""]
[null,null,null,null,null,"","",null,null,null,"","",null,null,null,"","",null,null,null,"",""]
[null,null,null,null,null,"","",null,null,null,"","",null,null,null,"","",null,null,null,"",""]
[null,null,null,null,null,"","",null,null,null,"","",null,null,null,"","",null,null,null,"",""]
[null,null,null,null,null,"","",null,null,null,"","",null,null,null,"","",null,null,null,"",""]
[null,null,null,null,null,"","",null,null,null,"","",null,null,null,"","",null,null,null,"",""]
[null,null,null,null,null,"","",null,null,null,"","",null,null,null,"","",null,null,null,"",""]
[null,null,null,null,null,"","",null,null,null,"","",null,null,null,"","",null,null,null,"",""]
[null,null,null,null,null,"","",null,null,null,"","",null,null,null,"","",null,null,null,"",""]
[null,null,null,null,null,"","",null,null,null,"","",null,null,null,"","",null,null,null,"",""]
[null,null,null,null,null,"","",null,null,null,"","",null,null,null,"","",null,null,null,"",""]
[null,null,null,null,null,"","",null,null,null,"","",null,null,null,"","",null,null,null,"",""]
[null,null,null,null,null,"","",null,null,null,"","",null,null,null,"","",null,null,null,"",""]
[null,null,null,null,null,"","",null,null,null,"","",null,null,null,"","",null,null,null,"",""]
[null,null,null,null,null,"","",null,null,null,"","",null,null,null,"","",null,null,null,"",""]
[null,null,null,null,null,"","",null,null,null,"","",null,null,null,"","",null,null,null,"",""]
[null,null,null,null,null,"","",null,null,null,"","",null,null,null,"","",null,null,null,"",""]
[null,null,null,null,null,"","",null,null,null,"","",null,null,null,"","",null,null,null,"",""]
[null,null,null,null,null,"","",null,null,null,"","",null,null,null,"","",null,null,null,"",""]
[null,null,null,null,null,"","",null,null,null,"","",null,null,null,"","",null,null,null,"",""]
[null,null,null,null,null,"","",null,null,null,"","",null,null,null,"","",null,null,null,"",""]
[null,null,null,null,null,"","",null,null,null,"","",null,null,null,"","",null,null,null,"",""]
[null,null,null,null,null,"","",null,null,null,"","",null,null,null,"","",null,null,null,"",""]
[null,null,null,null,null,"","",null,null,null,"","",null,null,null,"","",null,null,null,"",""]
[null,null,null,null,null,"","",null,null,null,"","",null,null,null,"","",null,null,null,"",""]
[null,null,null,null,null,"","",null,null,null,"","",null,null,null,"","",null,null,null,"",""]
[null,null,null,null,null,"","",null,null,null,"","",null,null,null,"","",null,null,null,"",""]
[null,null,null,null,null,"","",null,null,null,"","",null,null,null,"","",null,null,null,"",""]
[null,null,null,null,null,"","",null,null,null,"","",null,null,null,"","",null,null,null,"",""]
[null,null,null,null,null,"","",null,null,null,"","",null,null,null,"","",null,null,null,"",""]
[null,null,null,null,null,"","",null,null,null,"","",null,null,null,"","",null,null,null,"",""]
[null,null,null,null,null,"","",null,null,null,"","",null,null,null,"","",null,null,null,"",""]
[null,null,null,null,null,"","",null,null,null,"","",null,null,null,"","",null,null,null,"",""]
[null,null,null,null,null,"","",null,null,null,"","",null,null,null,"","",null,null,null,"",""]
[null,null,null,null,null,"","",null,null,null,"","",null,null,null,"","",null,null,null,"",""]
[null,null,null,null,null,"","",null,null,null,"","",null,null,null,"","",null,null,null,"",""]
[null,null,null,null,null,"","",null,null,null,"","",null,null,null,"","",null,null,null,"",""]
[null,null,null,null,null,"","",null,null,null,"","",null,null,null,"","",null,null,null,"",""]
[null,null,null,null,null,"","",null,null,null,"","",null,null,null,"","",null,null,null,"",""]
[null,null,null,null,null,"","",null,null,null,"","",null,null,null,"","",null,null,null,"",""]
[null,null,null,null,null,"","",null,null,null,"","",null,null,null,"","",null,null,null,"",""]
[null,null,null,null,null,"","",null,null,null,"","",null,null,null,"","",null,null,null,"",""]
[null,null,null,null,null,"","",null,null,null,"","",null,null,null,"","",null,null,null,"",""]
[null,null,null,null,null,"","",null,null,null,"","",null,null,null,"","",null,null,null,"",""]
[null,null,null,null,null,"","",null,null,null,"","",null,null,null,"","",null,null,null,"",""]
[null,null,null,null,null,"","",null,null,null,"","",null,null,null,"","",null,null,null,"",""]
[null,null,null,null,null,"","",null,null,null,"","",null,null,null,"","",null,null,null,"",""]
[null,null,null,null,null,"","",null,null,null,"","",null,null,null,"","",null,null,null,"",""]
[null,null,null,null,null,"","",null,null,null,"","",null,null,null,"","",null,null,null,"",""]
[null,null,null,null,null,"","",null,null,null,"","",null,null,null,"","",null,null,null,"",""]
[null,null,null,null,null,"","",null,null,null,"","",null,null,null,"","",null,null,null,"",""]
[null,null,null,null,null,"","",null,null,null,"","",null,null,null,"","",null,null,null,"",""]
[null,null,null,null,null,"","",null,null,null,"","",null,null,null,"","",null,null,null,"",""]
[null,null,null,null,null,"","",null,null,null,"","",null,null,null,"","",null,null,null,"",""]
[null,null,null,null,null,{"$f":"IF(D70=\"\",\"\",HOUR(D70-C70)*60+MINUTE(D70-C70))","v":""},{"$f":"IF(F70=\"\",\"\",IF(F70/15*$A$1,F70/15*$B$1))","v":""},null,null,null,{"$f":"IF(I70=\"\",\"\",HOUR(I70-H70)*60+MINUTE(I70-H70))","v":""},{"$f":"IF(K70=\"\",\"\",IF(K70/15*$A$1,K70/15*$B$1))","v":""},null,null,null,{"$f":"IF(N70=\"\",\"\",HOUR(N70-M70)*60+MINUTE(N70-M70))","v":""},{"$f":"IF(O70=\"\",\"\",IF(O70/15*$A$1,O70/15*$B$1))","v":""},null,null,null,{"$f":"IF(S70=\"\",\"\",HOUR(S70-R70)*60+MINUTE(S70-R70))","v":""},{"$f":"IF(U70=\"\",\"\",IF(U70/15*$A$1,U70/15*$B$1))","v":""}]
[null,null,null,null,null,"","",null,null,null,"","",null,null,null,"","",null,null,null,"",""]
[null,null,null,null,null,"","",null,null,null,"","",null,null,null,"","",null,null,null,"",""]
[null,null,null,null,null,"","",null,null,null,"","",null,null,null,"","",null,null,null,"",""]
[null,null,null,null,null,"","",null,null,null,"","",null,null,null,"","",null,null,null,"",""]
[null,null,null,null,null,"","",null,null,null,"","",null,null,null,"","",null,null,null,"",""]
[null,null,null,null,null,"","",null,null,null,"","",null,null,null,"","",null,null,null,"",""]
[null,null,null,null,null,"","",null,null,null,"","",null,null,null,"","",null,null,null,"",""]
[null,null,null,null,null,"","",null,null,null,"","",null,null,null,"","",null,null,null,"",""]
[null,null,null,null,null,"","",null,null,null,"","",null,null,null,"","",null,null,null,"",""]
[null,null,null,null,null,"","",null,null,null,"","",null,null,null,"","",null,null,null,"",""]
[null,null,null,null,null,"","",null,null,null,"","",null,null,null,"","",null,null,null,"",""]
[null,null,null,null,null,"","",null,null,null,"","",null,null,null,"","",null,null,null,"",""]
[null,null,null,null,null,"","",null,null,null,"","",null,null,null,"","",null,null,null,"",""]
[null,null,null,null,null,"","",null,null,null,"","",null,null,null,"","",null,null,null,"",""]
[null,null,null,null,null,"","",null,null,null,"","",null,null,null,"","",null,null,null,"",""]
[null,null,null,null,null,"","",null,null,null,"","",null,null,null,"","",null,null,null,"",""]
[null,null,null,null,null,"","",null,null,null,"","",null,null,null,"","",null,null,null,"",""]
[null,null,null,null,null,"","",null,null,null,"","",null,null,null,"","",null,null,null,"",""]
[null,null,null,null,null,"","",null,null,null,"","",null,null,null,"","",null,null,null,"",""]
[null,null,null,null,null,"","",null,null,null,"","",null,null,null,"","",null,null,null,"",""]
[null,null,null,null,null,"","",null,null,null,"","",null,null,null,"","",null,null,null,"",""]
[null,null,null,null,null,"","",null,null,null,"","",null,null,null,"","",null,null,null,"",""]
[null,null,null,null,null,"","",null,null,null,"","",null,null,null,"","",null,null,null,"",""]
[null,null,null,null,null,"","",null,null,null,"","",null,null,null,"","",null,null,null,"",""]
[null,null,null,null,null,"","",null,null,null,"","",null,null,null,"","",null,null,null,"",""]
[null,null,null,null,null,"","",null,null,null,"","",null,null,null,"","",null,null,null,"",""]
[null,null,null,null,null,"","",null,null,null,"","",null,null,null,"","",null,null,null,"",""]
[null,null,null,null,null,"","",null,null,null,"","",null,null,null,"","",null,null,null,"",""]
[null,null,null,null,null,"","",null,null,null,"","",null,null,null,"","",null,null,null,"",""]
[null,null,null,null,null,"","",null,null,null,"","",null,null,null,"","",null,null,null,"",""]
[null,null,null,null,null,"","",null,null,null,"","",null,null,null,"","",null,null,null,"",""]
[null,null,null,null,null,"","",null,null,null,"","",null,null,null,"","",null,null,null,"",""]
[null,null,null,null,null,"","",null,null,null,"","",null,null,null,"","",null,null,null,"",""]
[null,null,null,null,null,"","",null,null,null,"","",null,null,null,"","",null,null,null,"",""]
[null,null,null,null,null,"","",null,null,null,"","",null,null,null,"","",null,null,null,"",""]
[null,null,null,null,null,"","",null,null,null,"","",null,null,null,"","",null,null,null,"",""]
[null,null,null,null,null,"","",null,null,null,"","",null,null,null,"","",null,null,null,"",""]
[null,null,null,null,null,"","",null,null,null,"","",null,null,null,"","",null,null,null,"",""]
[null,null,null,null,null,"","",null,null,null,"","",null,null,null,"","",null,null,null,"",""]
[null,null,null,null,null,"","",null,null,null,"","",null,null,null,"","",null,null,null,"",""]
[null,null,null,null,null,"","",null,null,null,"","",null,null,null,"","",null,null,null,"",""]
[null,null,null,null,null,"","",null,null,null,"","",null,null,null,"","",null,null,null,"",""]
[null,null,null,null,null,"","",null,null,null,"","",null,null,null,"","",null,null,null,"",""]
[null,null,null,null,null,"","",null,null,null,"","",null,null,null,"","",null,null,null,"",""]
[null,null,null,null,null,"","",null,null,null,"","",null,null,null,"","",null,null,null,"",""]
[null,null,null,null,null,"","",null,null,null,"","",null,null,null,"","",null,null,null,"",""]
[null,null,null,null,null,"","",null,null,null,"","",null,null,null,"","",null,null,null,"",""]
[null,null,null,null,null,"","",null,null,null,"","",null,null,null,"","",null,null,null,"",""]
[null,null,null,null,null,"","",null,null,null,"","",null,null,null,"","",null,null,null,"",""]
[null,null,null,null,null,"","",null,null,null,"","",null,null,null,"","",null,null,null,"",""]
[null,null,null,null,null,"","",null,null,null,"","",null,null,null,"","",null,null,null,"",""]
[null,null,null,null,null,"","",null,null,null,"","",null,null,null,"","",null,null,null,"",""]
[null,null,null,null,null,"","",null,null,null,"","",null,null,null,"","",null,null,null,"",""]
[null,null,null,null,null,"","",null,null,null,"","",null,null,null,"","",null,null,null,"",""]
[null,null,null,null,null,"","",null,null,null,"","",null,null,null,"","",null,null,null,"",""]
[null,null,null,null,null,"","",null,null,null,"","",null,null,null,"","",null,null,null,"",""]
[null,null,null,null,null,"","",null,null,null,"","",null,null,null,"","",null,null,null,"",""]
[null,null,null,null,null,"","",null,null,null,"","",null,null,null,"","",null,null,null,"",""]
[null,null,null,null,null,"","",null,null,null,"","",null,null,null,"","",null,null,null,"",""]
[null,null,null,null,null,"","",null,null,null,"","",null,null,null,"","",null,null,null,"",""]
[null,null,null,null,null,"","",null,null,null,"","",null,null,null,"","",null,null,null,"",""]
[null,null,null,null,null,"","",null,null,null,"","",null,null,null,"","",null,null,null,"",""]
[null,null,null,null,null,"","",null,null,null,"","",null,null,null,"","",null,null,null,"",""]
[null,null,null,null,null,{"$f":"IF(D134=\"\",\"\",HOUR(D134-C134)*60+MINUTE(D134-C134))","v":""},{"$f":"IF(F134=\"\",\"\",IF(F134/15*$A$1,F134/15*$B$1))","v":""},null,null,null,{"$f":"IF(I134=\"\",\"\",HOUR(I134-H134)*60+MINUTE(I134-H134))","v":""},{"$f":"IF(K134=\"\",\"\",IF(K134/15*$A$1,K134/15*$B$1))","v":""},null,null,null,{"$f":"IF(N134=\"\",\"\",HOUR(N134-M134)*60+MINUTE(N134-M134))","v":""},{"$f":"IF(O134=\"\",\"\",IF(O134/15*$A$1,O134/15*$B$1))","v":""},null,null,null,{"$f":"IF(S134=\"\",\"\",HOUR(S134-R134)*60+MINUTE(S134-R134))","v":""},{"$f":"IF(U134=\"\",\"\",IF(U134/15*$A$1,U134/15*$B$1))","v":""}]
[null,null,null,null,null,"","",null,null,null,"","",null,null,null,"","",null,null,null,"",""]
[null,null,null,null,null,"","",null,null,null,"","",null,null,null,"","",null,null,null,"",""]
[null,null,null,null,null,"","",null,null,null,"","",null,null,null,"","",null,null,null,"",""]
[null,null,null,null,null,"","",null,null,null,"","",null,null,null,"","",null,null,null,"",""]
[null,null,null,null,null,"","",null,null,null,"","",null,null,null,"","",null,null,null,"",""]
[null,null,null,null,null,"","",null,null,null,"","",null,null,null,"","",null,null,null,"",""]
[null,null,null,null,null,"","",null,null,null,"","",null,null,null,"","",null,null,null,"",""]
[null,null,null,null,null,"","",null,null,null,"","",null,null,null,"","",null,null,null,"",""]
[null,null,null,null,null,"","",null,null,null,"","",null,null,null,"","",null,null,null,"",""]
[null,null,null,null,null,"","",null,null,null,"","",null,null,null,"","",null,null,null,"",""]
[null,null,null,null,null,"","",null,null,null,"","",null,null,null,"","",null,null,null,"",""]
[null,null,null,null,null,"","",null,null,null,"","",null,null,null,"","",null,null,null,"",""]
[null,null,null,null,null,"","",null,null,null,"","",null,null,null,"","",null,null,null,"",""]
[null,null,null,null,null,"","",null,null,null,"","",null,null,null,"","",null,null,null,"",""]
[null,null,null,null,null,"","",null,null,null,"","",null,null,null,"","",null,null,null,"",""]
[null,null,null,null,null,"","",null,null,null,"","",null,null,null,"","",null,null,null,"",""]
[null,null,null,null,null,"","",null,null,null,"","",null,null,null,"","",null,null,null,"",""]
[null,null,null,null,null,"","",null,null,null,"","",null,null,null,"","",null,null,null,"",""]
[null,null,null,null,null,"","",null,null,null,"","",null,null,null,"","",null,null,null,"",""]
[null,null,null,null,null,"","",null,null,null,"","",null,null,null,"","",null,null,null,"",""]
[null,null,null,null,null,"","",null,null,null,"","",null,null,null,"","",null,null,null,"",""]
[null,null,null,null,null,"","",null,null,null,"","",null,null,null,"","",null,null,null,"",""]
[null,null,null,null,null,"","",null,null,null,"","",null,null,null,"","",null,null,null,"",""]
[null,null,null,null,null,"","",null,null,null,"","",null,null,null,"","",null,null,null,"",""]
[null,null,null,null,null,"","",null,null,null,"","",null,null,null,"","",null,null,null,"",""]
[null,null,null,null,null,"","",null,null,null,"","",null,null,null,"","",null,null,null,"",""]
[null,null,null,null,null,"","",null,null,null,"","",null,null,null,"","",null,null,null,"",""]
[null,null,null,null,null,"","",null,null,null,"","",null,null,null,"","",null,null,null,"",""]
[null,null,null,null,null,"","",null,null,null,"","",null,null,null,"","",null,null,null,"",""]
[null,null,null,null,null,"","",null,null,null,"","",null,null,null,"","",null,null,null,"",""]
[null,null,null,null,null,"","",null,null,null,"","",null,null,null,"","",null,null,null,"",""]
[null,null,null,null,null,"","",null,null,null,"","",null,null,null,"","",null,null,null,"",""]
[null,null,null,null,null,"","",null,null,null,"","",null,null,null,"","",null,null,null,"",""]
[null,null,null,null,null,"","",null,null,null,"","",null,null,null,"","",null,null,null,"",""]
[null,null,null,null,null,"","",null,null,null,"","",null,null,null,"","",null,null,null,"",""]
[null,null,null,null,null,"","",null,null,null,"","",null,null,null,"","",null,null,null,"",""]
[null,null,null,null,null,"","",null,null,null,"","",null,null,null,"","",null,null,null,"",""]
[null,null,null,null,null,"","",null,null,null,"","",null,null,null,"","",null,null,null,"",""]
[null,null,null,null,null,"","",null,null,null,"","",null,null,null,"","",null,null,null,"",""]
[null,null,null,null,null,"","",null,null,null,"","",null,null,null,"","",null,null,null,"",""]
[null,null,null,null,null,"","",null,null,null,"","",null,null,null,"","",null,null,null,"",""]
[null,null,null,null,null,"","",null,null,null,"","",null,null,null,"","",null,null,null,"",""]
[null,null,null,null,null,"","",null,null,null,"","",null,null,null,"","",null,null,null,"",""]
[null,null,null,null,null,"","",null,null,null,"","",null,null,null,"","",null,null,null,"",""]
[null,null,null,null,null,"","",null,null,null,"","",null,null,null,"","",null,null,null,"",""]
[null,null,null,null,null,"","",null,null,null,"","",null,null,null,"","",null,null,null,"",""]
[null,null,null,null,null,"","",null,null,null,"","",null,null,null,"","",null,null,null,"",""]
[null,null,null,null,null,"","",null,null,null,"","",null,null,null,"","",null,null,null,"",""]
[null,null,null,null,null,"","",null,null,null,"","",null,null,null,"","",null,null,null,"",""]
[null,null,null,null,null,"","",null,null,null,"","",null,null,null,"","",null,null,null,"",""]
[null,null,null,null,null,"","",null,null,null,"","",null,null,null,"","",null,null,null,"",""]
[null,null,null,null,null,"","",null,null,null,"","",null,null,null,"","",null,null,null,"",""]
[null,null,null,null,null,"","",null,null,null,"","",null,null,null,"","",null,null,null,"",""]
[null,null,null,null,null,"","",null,null,null,"","",null,null,null,"","",null,null,null,"",""]
[null,null,null,null,null,"","",null,null,null,"","",null,null,null,"","",null,null,null,"",""]
[null,null,null,null,null,"","",null,null,null,"","",null,null,null,"","",null,null,null,"",""]
[null,null,null,null,null,"","",null,null,null,"","",null,null,null,"","",null,null,null,"",""]
[null,null,null,null,null,"","",null,null,null,"","",null,null,null,"","",null,null,null,"",""]
[null,null,null,null,null,"","",null,null,null,"","",null,null,null,"","",null,null,null,"",""]
[null,null,null,null,null,"","",null,null,null,"","",null,null,null,"","",null,null,null,"",""]
[null,null,null,null,null,"","",null,null,null,"","",null,null,null,"","",null,null,null,"",""]
[null,null,null,null,null,"","",null,null,null,"","",null,null,null,"","",null,null,null,"",""]
[null,null,null,null,null,"","",null,null,null,"","",null,null,null,"","",null,null,null,"",""]
[null,null,null,null,null,{"$f":"IF(D198=\"\",\"\",HOUR(D198-C198)*60+MINUTE(D198-C198))","v":""},{"$f":"IF(F198=\"\",\"\",IF(F198/15*$A$1,F198/15*$B$1))","v":""},null,null,null,{"$f":"IF(I198=\"\",\"\",HOUR(I198-H198)*60+MINUTE(I198-H198))","v":""},{"$f":"IF(K198=\"\",\"\",IF(K198/15*$A$1,K198/15*$B$1))","v":""},null,null,null,{"$f":"IF(N198=\"\",\"\",HOUR(N198-M198)*60+MINUTE(N198-M198))","v":""},{"$f":"IF(O198=\"\",\"\",IF(O198/15*$A$1,O198/15*$B$1))","v":""},null,null,null,{"$f":"IF(S198=\"\",\"\",HOUR(S198-R198)*60+MINUTE(S198-R198))","v":""},{"$f":"IF(U198=\"\",\"\",IF(U198/15*$A$1,U198/15*$B$1))","v":""}]
[null,null,null,null,null,"","",null,null,null,"","",null,null,null,"","",null,null,null,"",""]
[null,null,null,null,null,"","",null,null,null,"","",null,null,null,"","",null,null,null,"",""]
[null,null,null,null,null,"","",null,null,null,"","",null,null,null,"","",null,null,null,"",""]
[null,null,null,null,null,"","",null,null,null,"","",null,null,null,"","",null,null,null,"",""]
[null,null,null,null,null,"","",null,null,null,"","",null,null,null,"","",null,null,null,"",""]
[null,null,null,null,null,"","",null,null,null,"","",null,null,null,"","",null,null,null,"",""]
[null,null,null,null,null,"","",null,null,null,"","",null,null,null,"","",null,null,null,"",""]
[null,null,null,null,null,"","",null,null,null,"","",null,null,null,"","",null,null,null,"",""]
[null,null,null,null,null,"","",null,null,null,"","",null,null,null,"","",null,null,null,"",""]
[null,null,null,null,null,"","",null,null,null,"","",null,null,null,"","",null,null,null,"",""]
[null,null,null,null,null,"","",null,null,null,"","",null,null,null,"","",null,null,null,"",""]
[null,null,null,null,null,"","",null,null,null,"","",null,null,null,"","",null,null,null,"",""]
[null,null,null,null,null,"","",null,null,null,"","",null,null,null,"","",null,null,null,"",""]
[null,null,null,null,null,"","",null,null,null,"","",null,null,null,"","",null,null,null,"",""]
[null,null,null,null,null,"","",null,null,null,"","",null,null,null,"","",null,null,null,"",""]
[null,null,null,null,null,"","",null,null,null,"","",null,null,null,"","",null,null,null,"",""]
[null,null,null,null,null,"","",null,null,null,"","",null,null,null,"","",null,null,null,"",""]
[null,null,null,null,null,"","",null,null,null,"","",null,null,null,"","",null,null,null,"",""]
[null,null,null,null,null,"","",null,null,null,"","",null,null,null,"","",null,null,null,"",""]
[null,null,null,null,null,"","",null,null,null,"","",null,null,null,"","",null,null,null,"",""]
[null,null,null,null,null,"","",null,null,null,"","",null,null,null,"","",null,null,null,"",""]
[null,null,null,null,null,"","",null,null,null,"","",null,null,null,"","",null,null,null,"",""]
[null,null,null,null,null,"","",null,null,null,"","",null,null,null,"","",null,null,null,"",""]
[null,null,null,null,null,"","",null,null,null,"","",null,null,null,"","",null,null,null,"",""]
[null,null,null,null,null,"","",null,null,null,"","",null,null,null,"","",null,null,null,"",""]
[null,null,null,null,null,"","",null,null,null,"","",null,null,null,"","",null,null,null,"",""]
[null,null,null,null,null,"","",null,null,null,"","",null,null,null,"","",null,null,null,"",""]
[null,null,null,null,null,"","",null,null,null,"","",null,null,null,"","",null,null,null,"",""]
[null,null,null,null,null,"","",null,null,null,"","",null,null,null,"","",null,null,null,"",""]
[null,null,null,null,null,"","",null,null,null,"","",null,null,null,"","",null,null,null,"",""]
[null,null,null,null,null,"","",null,null,null,"","",null,null,null,"","",null,null,null,"",""]
[null,null,null,null,null,"","",null,null,null,"","",null,null,null,"","",null,null,null,"",""]
[null,null,null,null,null,"","",null,null,null,"","",null,null,null,"","",null,null,null,"",""]
[null,null,null,null,null,"","",null,null,null,"","",null,null,null,"","",null,null,null,"",""]
[null,null,null,null,null,"","",null,null,null,"","",null,null,null,"","",null,null,null,"",""]
[null,null,null,null,null,"","",null,null,null,"","",null,null,null,"","",null,null,null,"",""]
[null,null,null,null,null,"","",null,null,null,"","",null,null,null,"","",null,null,null,"",""]
[null,null,null,null,null,"","",null,null,null,"","",null,null,null,"","",null,null,null,"",""]
[null,null,null,null,null,"","",null,null,null,"","",null,null,null,"","",null,null,null,"",""]
[null,null,null,null,null,"","",null,null,null,"","",null,null,null,"","",null,null,null,"",""]
[null,null,null,null,null,"","",null,null,null,"","",null,null,null,"","",null,null,null,"",""]
[null,null,null,null,null,"","",null,null,null,"","",null,null,null,"","",null,null,null,"",""]
[null,null,null,null,null,"","",null,null,null,"","",null,null,null,"","",null,null,null,"",""]
[null,null,null,null,null,"","",null,null,null,"","",null,null,null,"","",null,null,null,"",""]
[null,null,null,null,null,"","",null,null,null,"","",null,null,null,"","",null,null,null,"",""]
[null,null,null,null,null,"","",null,null,null,"","",null,null,null,"","",null,null,null,"",""]
[null,null,null,null,null,"","",null,null,null,"","",null,null,null,"","",null,null,null,"",""]
[null,null,null,null,null,"","",null,null,null,"","",null,null,null,"","",null,null,null,"",""]
[null,null,null,null,null,"","",null,null,null,"","",null,null,null,"","",null,null,null,"",""]
[null,null,null,null,null,"","",null,null,null,"","",null,null,null,"","",null,null,null,"",""]
[null,null,null,null,null,"","",null,null,null,"","",null,null,null,"","",null,null,null,"",""]
[null,null,null,null,null,"","",null,null,null,"","",null,null,null,"","",null,null,null,"",""]
[null,null,null,null,null,"","",null,null,null,"","",null,null,null,"","",null,null,null,"",""]
[null,null,null,null,null,"","",null,null,null,"","",null,null,null,"","",null,null,null,"",""]
[null,null,null,null,null,"","",null,null,null,"","",null,null,null,"","",null,null,null,"",""]
[null,null,null,null,null,"","",null,null,null,"","",null,null,null,"","",null,null,null,"",""]
[null,null,null,null,null,"","",null,null,null,"","",null,null,null,"","",null,null,null,"",""]
[null,null,null,null,null,"","",null,null,null,"","",null,null,null,"","",null,null,null,"",""]
[null,null,null,null,null,"","",null,null,null,"","",null,null,null,"","",null,null,null,"",""]
[null,null,null,null,null,"","",null,null,null,"","",null,null,null,"","",null,null,null,"",""]
[null,null,null,null,null,"","",null,null,null,"","",null,null,null,"","",null,null,null,"",""]
[null,null,null,null,null,"","",null,null,null,"","",null,null,null,"","",null,null,null,"",""]
[null,null,null,null,null,"","",null,null,null,"","",null,null,null,"","",null,null,null,"",""]
[null,null,null,null,null,{"$f":"IF(D262=\"\",\"\",HOUR(D262-C262)*60+MINUTE(D262-C262))","v":""},{"$f":"IF(F262=\"\",\"\",IF(F262/15*$A$1,F262/15*$B$1))","v":""},null,null,null,{"$f":"IF(I262=\"\",\"\",HOUR(I262-H262)*60+MINUTE(I262-H262))","v":""},{"$f":"IF(K262=\"\",\"\",IF(K262/15*$A$1,K262/15*$B$1))","v":""},null,null,null,{"$f":"IF(N262=\"\",\"\",HOUR(N262-M262)*60+MINUTE(N262-M262))","v":""},{"$f":"IF(O262=\"\",\"\",IF(O262/15*$A$1,O262/15*$B$1))","v":""},null,null,null,{"$f":"IF(S262=\"\",\"\",HOUR(S262-R262)*60+MINUTE(S262-R262))","v":""},{"$f":"IF(U262=\"\",\"\",IF(U262/15*$A$1,U262/15*$B$1))","v":""}]
[null,null,null,null,null,"","",null,null,null,"","",null,null,null,"","",null,null,null,"",""]
[null,null,null,null,null,"","",null,null,null,"","",null,null,null,"","",null,null,null,"",""]
[null,null,null,null,null,"","",null,null,null,"","",null,null,null,"","",null,null,null,"",""]
[null,null,null,null,null,"","",null,null,null,"","",null,null,null,"","",null,null,null,"",""]
[null,null,null,null,null,"","",null,null,null,"","",null,null,null,"","",null,null,null,"",""]
[null,null,null,null,null,"","",null,null,null,"","",null,null,null,"","",null,null,null,"",""]
[null,null,null,null,null,"","",null,null,null,"","",null,null,null,"","",null,null,null,"",""]
[null,null,null,null,null,"","",null,null,null,"","",null,null,null,"","",null,null,null,"",""]
[null,null,null,null,null,"","",null,null,null,"","",null,null,null,"","",null,null,null,"",""]
[null,null,null,null,null,"","",null,null,null,"","",null,null,null,"","",null,null,null,"",""]
[null,null,null,null,null,"","",null,null,null,"","",null,null,null,"","",null,null,null,"",""]
[null,null,null,null,null,"","",null,null,null,"","",null,null,null,"","",null,null,null,"",""]
[null,null,null,null,null,"","",null,null,null,"","",null,null,null,"","",null,null,null,"",""]
[null,null,null,null,null,"","",null,null,null,"","",null,null,null,"","",null,null,null,"",""]
[null,null,null,null,null,"","",null,null,null,"","",null,null,null,"","",null,null,null,"",""]
[null,null,null,null,null,"","",null,null,null,"","",null,null,null,"","",null,null,null,"",""]
[null,null,null,null,null,"","",null,null,null,"","",null,null,null,"","",null,null,null,"",""]
[null,null,null,null,null,"","",null,null,null,"","",null,null,null,"","",null,null,null,"",""]
[null,null,null,null,null,"","",null,null,null,"","",null,null,null,"","",null,null,null,"",""]
[null,null,null,null,null,"","",null,null,null,"","",null,null,null,"","",null,null,null,"",""]
[null,null,null,null,null,"","",null,null,null,"","",null,null,null,"","",null,null,null,"",""]
[null,null,null,null,null,"","",null,null,null,"","",null,null,null,"","",null,null,null,"",""]
[null,null,null,null,null,"","",null,null,null,"","",null,null,null,"","",null,null,null,"",""]
[null,null,null,null,null,"","",null,null,null,"","",null,null,null,"","",null,null,null,"",""]
[null,null,null,null,null,"","",null,null,null,"","",null,null,null,"","",null,null,null,"",""]
[null,null,null,null,null,"","",null,null,null,"","",null,null,null,"","",null,null,null,"",""]
[null,null,null,null,null,"","",null,null,null,"","",null,null,null,"","",null,null,null,"",""]
[null,null,null,null,null,"","",null,null,null,"","",null,null,null,"","",null,null,null,"",""]
[null,null,null,null,null,"","",null,null,null,"","",null,null,null,"","",null,null,null,"",""]
[null,null,null,null,null,"","",null,null,null,"","",null,null,null,"","",null,null,null,"",""]
[null,null,null,null,null,"","",null,null,null,"","",null,null,null,"","",null,null,null,"",""]
[null,null,null,null,null,"","",null,null,null,"","",null,null,null,"","",null,null,null,"",""]
[null,null,null,null,null,"","",null,null,null,"","",null,null,null,"","",null,null,null,"",""]
[null,null,null,null,null,"","",null,null,null,"","",null,null,null,"","",null,null,null,"",""]
[null,null,null,null,null,"","",null,null,null,"","",null,null,null,"","",null,null,null,"",""]
[null,null,null,null,null,"","",null,null,null,"","",null,null,null,"","",null,null,null,"",""]
[null,null,null,null,null,"","",null,null,null,"","",null,null,null,"","",null,null,null,"",""]
[null,null,null,null,null,"","",null,null,null,"","",null,null,null,"","",null,null,null,"",""]
[null,null,null,null,null,"","",null,null,null,"","",null,null,null,"","",null,null,null,"",""]
[null,null,null,null,null,"","",null,null,null,"","",null,null,null,"","",null,null,null,"",""]
[null,null,null,null,null,"","",null,null,null,"","",null,null,null,"","",null,null,null,"",""]
[null,null,null,null,null,"","",null,null,null,"","",null,null,null,"","",null,null,null,"",""]
[null,null,null,null,null,"","",null,null,null,"","",null,null,null,"","",null,null,null,"",""]
[null,null,null,null,null,"","",null,null,null,"","",null,null,null,"","",null,null,null,"",""]
[null,null,null,null,null,"","",null,null,null,"","",null,null,null,"","",null,null,null,"",""]
[null,null,null,null,null,"","",null,null,null,"","",null,null,null,"","",null,null,null,"",""]
[null,null,null,null,null,"","",null,null,null,"","",null,null,null,"","",null,null,null,"",""]
[null,null,null,null,null,"","",null,null,null,"","",null,null,null,"","",null,null,null,"",""]
[null,null,null,null,null,"","",null,null,null,"","",null,null,null,"","",null,null,null,"",""]
[null,null,null,null,null,"","",null,null,null,"","",null,null,null,"","",null,null,null,"",""]
[null,null,null,null,null,"","",null,null,null,"","",null,null,null,"","",null,null,null,"",""]
[null,null,null,null,null,"","",null,null,null,"","",null,null,null,"","",null,null,null,"",""]
[null,null,null,null,null,"","",null,null,null,"","",null,null,null,"","",null,null,null,"",""]
[null,null,null,null,null,"","",null,null,null,"","",null,null,null,"","",null,null,null,"",""]
[null,null,null,null,null,"","",null,null,null,"","",null,null,null,"","",null,null,null,"",""]
[null,null,null,null,null,"","",null,null,null,"","",null,null,null,"","",null,null,null,"",""]
[null,null,null,null,null,"","",null,null,null,"","",null,null,null,"","",null,null,null,"",""]
[null,null,null,null,null,"","",null,null,null,"","",null,null,null,"","",null,null,null,"",""]
[null,null,null,null,null,"","",null,null,null,"","",null,null,null,"","",null,null,null,"",""]
[null,null,null,null,null,"","",null,null,null,"","",null,null,null,"","",null,null,null,"",""]
[null,null,null,null,null,"","",null,null,null,"","",null,null,null,"","",null,null,null,"",""]
[null,null,null,null,null,"","",null,null,null,"","",null,null,null,"","",null,null,null,"",""]
[null,null,null,null,null,"","",null,null,null,"","",null,null,null,"","",null,null,null,"",""]
[null,null,null,null,null,{"$f":"IF(D326=\"\",\"\",HOUR(D326-C326)*60+MINUTE(D326-C326))","v":""},{"$f":"IF(F326=\"\",\"\",IF(F326/15*$A$1,F326/15*$B$1))","v":""},null,null,null,{"$f":"IF(I326=\"\",\"\",HOUR(I326-H326)*60+MINUTE(I326-H326))","v":""},{"$f":"IF(K326=\"\",\"\",IF(K326/15*$A$1,K326/15*$B$1))","v":""},null,null,null,{"$f":"IF(N326=\"\",\"\",HOUR(N326-M326)*60+MINUTE(N326-M326))","v":""},{"$f":"IF(O326=\"\",\"\",IF(O326/15*$A$1,O326/15*$B$1))","v":""},null,null,null,{"$f":"IF(S326=\"\",\"\",HOUR(S326-R326)*60+MINUTE(S326-R326))","v":""},{"$f":"IF(U326=\"\",\"\",IF(U326/15*$A$1,U326/15*$B$1))","v":""}]
[null,null,null,null,null,"","",null,null,null,"","",null,null,null,"","",null,null,null,"",""]
[null,null,null,null,null,"","",null,null,null,"","",null,null,null,"","",null,null,null,"",""]
[null,null,null,null,null,"","",null,null,null,"","",null,null,null,"","",null,null,null,"",""]
[null,null,null,null,null,"","",null,null,null,"","",null,null,null,"","",null,null,null,"",""]
[null,null,null,null,null,"","",null,null,null,"","",null,null,null,"","",null,null,null,"",""]
[null,null,null,null,null,"","",null,null,null,"","",null,null,null,"","",null,null,null,"",""]
[null,null,null,null,null,"","",null,null,null,"","",null,null,null,"","",null,null,null,"",""]
[null,null,null,null,null,"","",null,null,null,"","",null,null,null,"","",null,null,null,"",""]
[null,null,null,null,null,"","",null,null,null,"","",null,null,null,"","",null,null,null,"",""]
[null,null,null,null,null,"","",null,null,null,"","",null,null,null,"","",null,null,null,"",""]
[null,null,null,null,null,"","",null,null,null,"","",null,null,null,"","",null,null,null,"",""]
[null,null,null,null,null,"","",null,null,null,"","",null,null,null,"","",null,null,null,"",""]
[null,null,null,null,null,"","",null,null,null,"","",null,null,null,"","",null,null,null,"",""]
[null,null,null,null,null,"","",null,null,null,"","",null,null,null,"","",null,null,null,"",""]
[null,null,null,null,null,"","",null,null,null,"","",null,null,null,"","",null,null,null,"",""]
[null,null,null,null,null,"","",null,null,null,"","",null,null,null,"","",null,null,null,"",""]
[null,null,null,null,null,"","",null,null,null,"","",null,null,null,"","",null,null,null,"",""]
[null,null,null,null,null,"","",null,null,null,"","",null,null,null,"","",null,null,null,"",""]
[null,null,null,null,null,"","",null,null,null,"","",null,null,null,"","",null,null,null,"",""]
[null,null,null,null,null,"","",null,null,null,"","",null,null,null,"","",null,null,null,"",""]
[null,null,null,null,null,"","",null,null,null,"","",null,null,null,"","",null,null,null,"",""]
[null,null,null,null,null,"","",null,null,null,"","",null,null,null,"","",null,null,null,"",""]
[null,null,null,null,null,"","",null,null,null,"","",null,null,null,"","",null,null,null,"",""]
[null,null,null,null,null,"","",null,null,null,"","",null,null,null,"","",null,null,null,"",""]
[null,null,null,null,null,"","",null,null,null,"","",null,null,null,"","",null,null,null,"",""]
[null,null,null,null,null,"","",null,null,null,"","",null,null,null,"","",null,null,null,"",""]
[null,null,null,null,null,"","",null,null,null,"","",null,null,null,"","",null,null,null,"",""]
[null,null,null,null,null,"","",null,null,null,"","",null,null,null,"","",null,null,null,"",""]
[null,null,null,null,null,"","",null,null,null,"","",null,null,null,"","",null,null,null,"",""]
[null,null,null,null,null,"","",null,null,null,"","",null,null,null,"","",null,null,null,"",""]
[null,null,null,null,null,"","",null,null,null,"","",null,null,null,"","",null,null,null,"",""]
[null,null,null,null,null,"","",null,null,null,"","",null,null,null,"","",null,null,null,"",""]
[null,null,null,null,null,"","",null,null,null,"","",null,null,null,"","",null,null,null,"",""]
[null,null,null,null,null,"","",null,null,null,"","",null,null,null,"","",null,null,null,"",""]
[null,null,null,null,null,"","",null,null,null,"","",null,null,null,"","",null,null,null,"",""]
[null,null,null,null,null,"","",null,null,null,"","",null,null,null,"","",null,null,null,"",""]
[null,null,null,null,null,"","",null,null,null,"","",null,null,null,"","",null,null,null,"",""]
[null,null,null,null,null,"","",null,null,null,"","",null,null,null,"","",null,null,null,"",""]
[null,null,null,null,null,"","",null,null,null,"","",null,null,null,"","",null,null,null,"",""]
[null,null,null,null,null,"","",null,null,null,"","",null,null,null,"","",null,null,null,"",""]
[null,null,null,null,null,"","",null,null,null,"","",null,null,null,"","",null,null,null,"",""]
[null,null,null,null,null,"","",null,null,null,"","",null,null,null,"","",null,null,null,"",""]
[null,null,null,null,null,"","",null,null,null,"","",null,null,null,"","",null,null,null,"",""]
[null,null,null,null,null,"","",null,null,null,"","",null,null,null,"","",null,null,null,"",""]
[null,null,null,null,null,"","",null,null,null,"","",null,null,null,"","",null,null,null,"",""]
[null,null,null,null,null,"","",null,null,null,"","",null,null,null,"","",null,null,null,"",""]
[null,null,null,null,null,"","",null,null,null,"","",null,null,null,"","",null,null,null,"",""]
[null,null,null,null,null,"","",null,null,null,"","",null,null,null,"","",null,null,null,"",""]
[null,null,null,null,null,"","",null,null,null,"","",null,null,null,"","",null,null,null,"",""]
[null,null,null,null,null,"","",null,null,null,"","",null,null,null,"","",null,null,null,"",""]
[null,null,null,null,null,"","",null,null,null,"","",null,null,null,"","",null,null,null,"",""]
[null,null,null,null,null,"","",null,null,null,"","",null,null,null,"","",null,null,null,"",""]
[null,null,null,null,null,"","",null,null,null,"","",null,null,null,"","",null,null,null,"",""]
[null,null,null,null,null,"","",null,null,null,"","",null,null,null,"","",null,null,null,"",""]
[null,null,null,null,null,"","",null,null,null,"","",null,null,null,"","",null,null,null,"",""]
[null,null,null,null,null,"","",null,null,null,"","",null,null,null,"","",null,null,null,"",""]
[null,null,null,null,null,"","",null,null,null,"","",null,null,null,"","",null,null,null,"",""]
[null,null,null,null,null,"","",null,null,null,"","",null,null,null,"","",null,null,null,"",""]
[null,null,null,null,null,"","",null,null,null,"","",null,null,null,"","",null,null,null,"",""]
[null,null,null,null,null,"","",null,null,null,"","",null,null,null,"","",null,null,null,"",""]
[null,null,null,null,null,"","",null,null,null,"","",null,null,null,"","",null,null,null,"",""]
[null,null,null,null,null,"","",null,null,null,"","",null,null,null,"","",null,null,null,"",""]
[null,null,null,null,null,"","",null,null,null,"","",null,null,null,"","",null,null,null,"",""]
[null,null,null,null,null,{"$f":"IF(D390=\"\",\"\",HOUR(D390-C390)*60+MINUTE(D390-C390))","v":""},{"$f":"IF(F390=\"\",\"\",IF(F390/15*$A$1,F390/15*$B$1))","v":""},null,null,null,{"$f":"IF(I390=\"\",\"\",HOUR(I390-H390)*60+MINUTE(I390-H390))","v":""},{"$f":"IF(K390=\"\",\"\",IF(K390/15*$A$1,K390/15*$B$1))","v":""},null,null,null,{"$f":"IF(N390=\"\",\"\",HOUR(N390-M390)*60+MINUTE(N390-M390))","v":""},{"$f":"IF(O390=\"\",\"\",IF(O390/15*$A$1,O390/15*$B$1))","v":""},null,null,null,{"$f":"IF(S390=\"\",\"\",HOUR(S390-R390)*60+MINUTE(S390-R390))","v":""},{"$f":"IF(U390=\"\",\"\",IF(U390/15*$A$1,U390/15*$B$1))","v":""}]
[null,null,null,null,null,"","",null,null,null,"","",null,null,null,"","",null,null,null,"",""]
[null,null,null,null,null,"","",null,null,null,"","",null,null,null,"","",null,null,null,"",""]
[null,null,null,null,null,"","",null,null,null,"","",null,null,null,"","",null,null,null,"",""]
[null,null,null,null,null,"","",null,null,null,"","",null,null,null,"","",null,null,null,"",""]
[null,null,null,null,null,"","",null,null,null,"","",null,null,null,"","",null,null,null,"",""]
[null,null,null,null,null,"","",null,null,null,"","",null,null,null,"","",null,null,null,"",""]
[null,null,null,null,null,"","",null,null,null,"","",null,null,null,"","",null,null,null,"",""]
[null,null,null,null,null,"","",null,null,null,"","",null,null,null,"","",null,null,null,"",""]
[null,null,null,null,null,"","",null,null,null,"","",null,null,null,"","",null,null,null,"",""]
[null,null,null,null,null,"","",null,null,null,"","",null,null,null,"","",null,null,null,"",""]
[null,null,null,null,null,"","",null,null,null,"","",null,null,null,"","",null,null,null,"",""]
[null,null,null,null,null,"","",null,null,null,"","",null,null,null,"","",null,null,null,"",""]
[null,null,null,null,null,"","",null,null,null,"","",null,null,null,"","",null,null,null,"",""]
[null,null,null,null,null,"","",null,null,null,"","",null,null,null,"","",null,null,null,"",""]
[null,null,null,null,null,"","",null,null,null,"","",null,null,null,"","",null,null,null,"",""]
[null,null,null,null,null,"","",null,null,null,"","",null,null,null,"","",null,null,null,"",""]
[null,null,null,null,null,"","",null,null,null,"","",null,null,null,"","",null,null,null,"",""]
[null,null,null,null,null,"","",null,null,null,"","",null,null,null,"","",null,null,null,"",""]
[null,null,null,null,null,"","",null,null,null,"","",null,null,null,"","",null,null,null,"",""]
[null,null,null,null,null,"","",null,null,null,"","",null,null,null,"","",null,null,null,"",""]
[null,null,null,null,null,"","",null,null,null,"","",null,null,null,"","",null,null,null,"",""]
[null,null,null,null,null,"","",null,null,null,"","",null,null,null,"","",null,null,null,"",""]
[null,null,null,null,null,"","",null,null,null,"","",null,null,null,"","",null,null,null,"",""]
[null,null,null,null,null,"","",null,null,null,"","",null,null,null,"","",null,null,null,"",""]
[null,null,null,null,null,"","",null,null,null,"","",null,null,null,"","",null,null,null,"",""]
[null,null,null,null,null,"","",null,null,null,"","",null,null,null,"","",null,null,null,"",""]
[null,null,null,null,null,"","",null,null,null,"","",null,null,null,"","",null,null,null,"",""]
[null,null,null,null,null,"","",null,null,null,"","",null,null,null,"","",null,null,null,"",""]
[null,null,null,null,null,"","",null,null,null,"","",null,null,null,"","",null,null,null,"",""]
[null,null,null,null,null,"","",null,null,null,"","",null,null,null,"","",null,null,null,"",""]
[null,null,null,null,null,"","",null,null,null,"","",null,null,null,"","",null,null,null,"",""]
[null,null,null,null,null,"","",null,null,null,"","",null,null,null,"","",null,null,null,"",""]
[null,null,null,null,null,"","",null,null,null,"","",null,null,null,"","",null,null,null,"",""]
[null,null,null,null,null,"","",null,null,null,"","",null,null,null,"","",null,null,null,"",""]
[null,null,null,null,null,"","",null,null,null,"","",null,null,null,"","",null,null,null,"",""]
[null,null,null,null,null,"","",null,null,null,"","",null,null,null,"","",null,null,null,"",""]
[null,null,null,null,null,"","",null,null,null,"","",null,null,null,"","",null,null,null,"",""]
[null,null,null,null,null,"","",null,null,null,"","",null,null,null,"","",null,null,null,"",""]
[null,null,null,null,null,"","",null,null,null,"","",null,null,null,"","",null,null,null,"",""]
[null,null,null,null,null,"","",null,null,null,"","",null,null,null,"","",null,null,null,"",""]
[null,null,null,null,null,"","",null,null,null,"","",null,null,null,"","",null,null,null,"",""]
[null,null,null,null,null,"","",null,null,null,"","",null,null,null,"","",null,null,null,"",""]
[null,null,null,null,null,"","",null,null,null,"","",null,null,null,"","",null,null,null,"",""]
[null,null,null,null,null,"","",null,null,null,"","",null,null,null,"","",null,null,null,"",""]
[null,null,null,null,null,"","",null,null,null,"","",null,null,null,"","",null,null,null,"",""]
[null,null,null,null,null,"","",null,null,null,"","",null,null,null,"","",null,null,null,"",""]
[null,null,null,null,null,"","",null,null,null,"","",null,null,null,"","",null,null,null,"",""]
[null,null,null,null,null,"","",null,null,null,"","",null,null,null,"","",null,null,null,"",""]
[null,null,null,null,null,"","",null,null,null,"","",null,null,null,"","",null,null,null,"",""]
[null,null,null,null,null,"","",null,null,null,"","",null,null,null,"","",null,null,null,"",""]
[null,null,null,null,null,"","",null,null,null,"","",null,null,null,"","",null,null,null,"",""]
[null,null,null,null,null,"","",null,null,null,"","",null,null,null,"","",null,null,null,"",""]
[null,null,null,null,null,"","",null,null,null,"","",null,null,null,"","",null,null,null,"",""]
[null,null,null,null,null,"","",null,null,null,"","",null,null,null,"","",null,null,null,"",""]
[null,null,null,null,null,"","",null,null,null,"","",null,null,null,"","",null,null,null,"",""]
[null,null,null,null,null,"","",null,null,null,"","",null,null,null,"","",null,null,null,"",""]
[null,null,null,null,null,"","",null,null,null,"","",null,null,null,"","",null,null,null,"",""]
[null,null,null,null,null,"","",null,null,null,"","",null,null,null,"","",null,null,null,"",""]
[null,null,null,null,null,"","",null,null,null,"","",null,null,null,"","",null,null,null,"",""]
[null,null,null,null,null,"","",null,null,null,"","",null,null,null,"","",null,null,null,"",""]
[null,null,null,null,null,"","",null,null,null,"","",null,null,null,"","",null,null,null,"",""]
[null,null,null,null,null,"","",null,null,null,"","",null,null,null,"","",null,null,null,"",""]
[null,null,null,null,null,"","",null,null,null,"","",null,null,null,"","",null,null,null,"",""]
[null,null,null,null,null,{"$f":"IF(D454=\"\",\"\",HOUR(D454-C454)*60+MINUTE(D454-C454))","v":""},{"$f":"IF(F454=\"\",\"\",IF(F454/15*$A$1,F454/15*$B$1))","v":""},null,null,null,{"$f":"IF(I454=\"\",\"\",HOUR(I454-H454)*60+MINUTE(I454-H454))","v":""},{"$f":"IF(K454=\"\",\"\",IF(K454/15*$A$1,K454/15*$B$1))","v":""},null,null,null,{"$f":"IF(N454=\"\",\"\",HOUR(N454-M454)*60+MINUTE(N454-M454))","v":""},{"$f":"IF(O454=\"\",\"\",IF(O454/15*$A$1,O454/15*$B$1))","v":""},null,null,null,{"$f":"IF(S454=\"\",\"\",HOUR(S454-R454)*60+MINUTE(S454-R454))","v":""},{"$f":"IF(U454=\"\",\"\",IF(U454/15*$A$1,U454/15*$B$1))","v":""}]
[null,null,null,null,null,"","",null,null,null,"","",null,null,null,"","",null,null,null,"",""]
[null,null,null,null,null,"","",null,null,null,"","",null,null,null,"","",null,null,null,"",""]
[null,null,null,null,null,"","",null,null,null,"","",null,null,null,"","",null,null,null,"",""]
[null,null,null,null,null,"","",null,null,null,"","",null,null,null,"","",null,null,null,"",""]
[null,null,null,null,null,"","",null,null,null,"","",null,null,null,"","",null,null,null,"",""]
[null,null,null,null,null,"","",null,null,null,"","",null,null,null,"","",null,null,null,"",""]
[null,null,null,null,null,"","",null,null,null,"","",null,null,null,"","",null,null,null,"",""]
[null,null,null,null,null,"","",null,null,null,"","",null,null,null,"","",null,null,null,"",""]
[null,null,null,null,null,"","",null,null,null,"","",null,null,null,"","",null,null,null,"",""]
[null,null,null,null,null,"","",null,null,null,"","",null,null,null,"","",null,null,null,"",""]
[null,null,null,null,null,"","",null,null,null,"","",null,null,null,"","",null,null,null,"",""]
[null,null,null,null,null,"","",null,null,null,"","",null,null,null,"","",null,null,null,"",""]
[null,null,null,null,null,"","",null,null,null,"","",null,null,null,"","",null,null,null,"",""]
[null,null,null,null,null,"","",null,null,null,"","",null,null,null,"","",null,null,null,"",""]
[null,null,null,null,null,"","",null,null,null,"","",null,null,null,"","",null,null,null,"",""]
[null,null,null,null,null,"","",null,null,null,"","",null,null,null,"","",null,null,null,"",""]
[null,null,null,null,null,"","",null,null,null,"","",null,null,null,"","",null,null,null,"",""]
[null,null,null,null,null,"","",null,null,null,"","",null,null,null,"","",null,null,null,"",""]
[null,null,null,null,null,"","",null,null,null,"","",null,null,null,"","",null,null,null,"",""]
[null,null,null,null,null,"","",null,null,null,"","",null,null,null,"","",null,null,null,"",""]
[null,null,null,null,null,"","",null,null,null,"","",null,null,null,"","",null,null,null,"",""]
[null,null,null,null,null,"","",null,null,null,"","",null,null,null,"","",null,null,null,"",""]
[null,null,null,null,null,"","",null,null,null,"","",null,null,null,"","",null,null,null,"",""]
[null,null,null,null,null,"","",null,null,null,"","",null,null,null,"","",null,null,null,"",""]
[null,null,null,null,null,"","",null,null,null,"","",null,null,null,"","",null,null,null,"",""]
[null,null,null,null,null,"","",null,null,null,"","",null,null,null,"","",null,null,null,"",""]
[null,null,null,null,null,"","",null,null,null,"","",null,null,null,"","",null,null,null,"",""]
[null,null,null,null,null,"","",null,null,null,"","",null,null,null,"","",null,null,null,"",""]
[null,null,null,null,null,"","",null,null,null,"","",null,null,null,"","",null,null,null,"",""]
[null,null,null,null,null,"","",null,null,null,"","",null,null,null,"","",null,null,null,"",""]
[null,null,null,null,null,"","",null,null,null,"","",null,null,null,"","",null,null,null,"",""]
[null,null,null,null,null,"","",null,null,null,"","",null,null,null,"","",null,null,null,"",""]
[null,null,null,null,null,"","",null,null,null,"","",null,null,null,"","",null,null,null,"",""]
[null,null,null,null,null,"","",null,null,null,"","",null,null,null,"","",null,null,null,"",""]
[null,null,null,null,null,"","",null,null,null,"","",null,null,null,"","",null,null,null,"",""]
[null,null,null,null,null,"","",null,null,null,"","",null,null,null,"","",null,null,null,"",""]
[null,null,null,null,null,"","",null,null,null,"","",null,null,null,"","",null,null,null,"",""]
[null,null,null,null,null,"","",null,null,null,"","",null,null,null,"","",null,null,null,"",""]
[null,null,null,null,null,"","",null,null,null,"","",null,null,null,"","",null,null,null,"",""]
[null,null,null,null,null,"","",null,null,null,"","",null,null,null,"","",null,null,null,"",""]
[null,null,null,null,null,"","",null,null,null,"","",null,null,null,"","",null,null,null,"",""]
[null,null,null,null,null,"","",null,null,null,"","",null,null,null,"","",null,null,null,"",""]
[null,null,null,null,null,"","",null,null,null,"","",null,null,null,"","",null,null,null,"",""]
[null,null,null,null,null,"","",null,null,null,"","",null,null,null,"","",null,null,null,"",""]
[null,null,null,null,null,"","",null,null,null,"","",null,null,null,"","",null,null,null,"",""]
[null,null,null,null,null,"","",null,null,null,"","",null,null,null,"","",null,null,null,"",""]
[null,null,null,null,null,"","",null,null,null,"","",null,null,null,"","",null,null,null,"",""]
[null,null,null,null,null,"","",null,null,null,"","",null,null,null,"","",null,null,null,"",""]
[null,null,null,null,null,"","",null,null,null,"","",null,null,null,"","",null,null,null,"",""]
[null,null,null,null,null,"","",null,null,null,"","",null,null,null,"","",null,null,null,"",""]
[null,null,null,null,null,"","",null,null,null,"","",null,null,null,"","",null,null,null,"",""]
[null,null,null,null,null,"","",null,null,null,"","",null,null,null,"","",null,null,null,"",""]
[null,null,null,null,null,"","",null,null,null,"","",null,null,null,"","",null,null,null,"",""]
[null,null,null,null,null,"","",null,null,null,"","",null,null,null,"","",null,null,null,"",""]
[null,null,null,null,null,"","",null,null,null,"","",null,null,null,"","",null,null,null,"",""]
[null,null,null,null,null,"","",null,null,null,"","",null,null,null,"","",null,null,null,"",""]
[null,null,null,null,null,"","",null,null,null,"","",null,null,null,"","",null,null,null,"",""]
[null,null,null,null,null,"","",null,null,null,"","",null,null,null,"","",null,null,null,"",""]
[null,null,null,null,null,"","",null,null,null,"","",null,null,null,"","",null,null,null,"",""]
[null,null,null,null,null,"","",null,null,null,"","",null,null,null,"","",null,null,null,"",""]
[null,null,null,null,null,"","",null,null,null,"","",null,null,null,"","",null,null,null,"",""]
[null,null,null,null,null,"","",null,null,null,"","",null,null,null,"","",null,null,null,"",""]
[null,null,null,null,null,"","",null,null,null,"","",null,null,null,"","",null,null,null,"",""]
[null,null,null,null,null,{"$f":"IF(D518=\"\",\"\",HOUR(D518-C518)*60+MINUTE(D518-C518))","v":""},{"$f":"IF(F518=\"\",\"\",IF(F518/15*$A$1,F518/15*$B$1))","v":""},null,null,null,{"$f":"IF(I518=\"\",\"\",HOUR(I518-H518)*60+MINUTE(I518-H518))","v":""},{"$f":"IF(K518=\"\",\"\",IF(K518/15*$A$1,K518/15*$B$1))","v":""},null,null,null,{"$f":"IF(N518=\"\",\"\",HOUR(N518-M518)*60+MINUTE(N518-M518))","v":""},{"$f":"IF(O518=\"\",\"\",IF(O518/15*$A$1,O518/15*$B$1))","v":""},null,null,null,{"$f":"IF(S518=\"\",\"\",HOUR(S518-R518)*60+MINUTE(S518-R518))","v":""},{"$f":"IF(U518=\"\",\"\",IF(U518/15*$A$1,U518/15*$B$1))","v":""}]
[null,null,null,null,null,"","",null,null,null,"","",null,null,null,"","",null,null,null,"",""]
[null,null,null,null,null,"","",null,null,null,"","",null,null,null,"","",null,null,null,"",""]
[null,null,null,null,null,"","",null,null,null,"","",null,null,null,"","",null,null,null,"",""]
[null,null,null,null,null,"","",null,null,null,"","",null,null,null,"","",null,null,null,"",""]
[null,null,null,null,null,"","",null,null,null,"","",null,null,null,"","",null,null,null,"",""]
[null,null,null,null,null,"","",null,null,null,"","",null,null,null,"","",null,null,null,"",""]
[null,null,null,null,null,"","",null,null,null,"","",null,null,null,"","",null,null,null,"",""]
[null,null,null,null,null,"","",null,null,null,"","",null,null,null,"","",null,null,null,"",""]
[null,null,null,null,null,"","",null,null,null,"","",null,null,null,"","",null,null,null,"",""]
[null,null,null,null,null,"","",null,null,null,"","",null,null,null,"","",null,null,null,"",""]
[null,null,null,null,null,"","",null,null,null,"","",null,null,null,"","",null,null,null,"",""]
[null,null,null,null,null,"","",null,null,null,"","",null,null,null,"","",null,null,null,"",""]
[null,null,null,null,null,"","",null,null,null,"","",null,null,null,"","",null,null,null,"",""]
[null,null,null,null,null,"","",null,null,null,"","",null,null,null,"","",null,null,null,"",""]
[null,null,null,null,null,"","",null,null,null,"","",null,null,null,"","",null,null,null,"",""]
[null,null,null,null,null,"","",null,null,null,"","",null,null,null,"","",null,null,null,"",""]
[null,null,null,null,null,"","",null,null,null,"","",null,null,null,"","",null,null,null,"",""]
[null,null,null,null,null,"","",null,null,null,"","",null,null,null,"","",null,null,null,"",""]
[null,null,null,null,null,"","",null,null,null,"","",null,null,null,"","",null,null,null,"",""]
[null,null,null,null,null,"","",null,null,null,"","",null,null,null,"","",null,null,null,"",""]
[null,null,null,null,null,"","",null,null,null,"","",null,null,null,"","",null,null,null,"",""]
[null,null,null,null,null,"","",null,null,null,"","",null,null,null,"","",null,null,null,"",""]
[null,null,null,null,null,"","",null,null,null,"","",null,null,null,"","",null,null,null,"",""]
[null,null,null,null,null,"","",null,null,null,"","",null,null,null,"","",null,null,null,"",""]
[null,null,null,null,null,"","",null,null,null,"","",null,null,null,"","",null,null,null,"",""]
[null,null,null,null,null,"","",null,null,null,"","",null,null,null,"","",null,null,null,"",""]
[null,null,null,null,null,"","",null,null,null,"","",null,null,null,"","",null,null,null,"",""]
[null,null,null,null,null,"","",null,null,null,"","",null,null,null,"","",null,null,null,"",""]
[null,null,null,null,null,"","",null,null,null,"","",null,null,null,"","",null,null,null,"",""]
[null,null,null,null,null,"","",null,null,null,"","",null,null,null,"","",null,null,null,"",""]
[null,null,null,null,null,"","",null,null,null,"","",null,null,null,"","",null,null,null,"",""]
[null,null,null,null,null,"","",null,null,null,"","",null,null,null,"","",null,null,null,"",""]
[null,null,null,null,null,"","",null,null,null,"","",null,null,null,"","",null,null,null,"",""]
[null,null,null,null,null,"","",null,null,null,"","",null,null,null,"","",null,null,null,"",""]
[null,null,null,null,null,"","",null,null,null,"","",null,null,null,"","",null,null,null,"",""]
[null,null,null,null,null,"","",null,null,null,"","",null,null,null,"","",null,null,null,"",""]
[null,null,null,null,null,"","",null,null,null,"","",null,null,null,"","",null,null,null,"",""]
[null,null,null,null,null,"","",null,null,null,"","",null,null,null,"","",null,null,null,"",""]
[null,null,null,null,null,"","",null,null,null,"","",null,null,null,"","",null,null,null,"",""]
[null,null,null,null,null,"","",null,null,null,"","",null,null,null,"","",null,null,null,"",""]
[null,null,null,null,null,"","",null,null,null,"","",null,null,null,"","",null,null,null,"",""]
[null,null,null,null,null,"","",null,null,null,"","",null,null,null,"","",null,null,null,"",""]
[null,null,null,null,null,"","",null,null,null,"","",null,null,null,"","",null,null,null,"",""]
[null,null,null,null,null,"","",null,null,null,"","",null,null,null,"","",null,null,null,"",""]
[null,null,null,null,null,"","",null,null,null,"","",null,null,null,"","",null,null,null,"",""]
[null,null,null,null,null,"","",null,null,null,"","",null,null,null,"","",null,null,null,"",""]
[null,null,null,null,null,"","",null,null,null,"","",null,null,null,"","",null,null,null,"",""]
[null,null,null,null,null,"","",null,null,null,"","",null,null,null,"","",null,null,null,"",""]
[null,null,null,null,null,"","",null,null,null,"","",null,null,null,"","",null,null,null,"",""]
[null,null,null,null,null,"","",null,null,null,"","",null,null,null,"","",null,null,null,"",""]
[null,null,null,null,null,"","",null,null,null,"","",null,null,null,"","",null,null,null,"",""]
[null,null,null,null,null,"","",null,null,null,"","",null,null,null,"","",null,null,null,"",""]
[null,null,null,null,null,"","",null,null,null,"","",null,null,null,"","",null,null,null,"",""]
[null,null,null,null,null,"","",null,null,null,"","",null,null,null,"","",null,null,null,"",""]
[null,null,null,null,null,"","",null,null,null,"","",null,null,null,"","",null,null,null,"",""]
[null,null,null,null,null,"","",null,null,null,"","",null,null,null,"","",null,null,null,"",""]
[null,null,null,null,null,"","",null,null,null,"","",null,null,null,"","",null,null,null,"",""]
[null,null,null,null,null,"","",null,null,null,"","",null,null,null,"","",null,null,null,"",""]
[null,null,null,null,null,"","",null,null,null,"","",null,null,null,"","",null,null,null,"",""]
[null,null,null,null,null,"","",null,null,null,"","",null,null,null,"","",null,null,null,"",""]
[null,null,null,null,null,"","",null,null,null,"","",null,null,null,"","",null,null,null,"",""]
[null,null,null,null,null,"","",null,null,null,"","",null,null,null,"","",null,null,null,"",""]
[null,null,null,null,null,"","",null,null,null,"","",null,null,null,"","",null,null,null,"",""]
[null,null,null,null,null,{"$f":"IF(D582=\"\",\"\",HOUR(D582-C582)*60+MINUTE(D582-C582))","v":""},{"$f":"IF(F582=\"\",\"\",IF(F582/15*$A$1,F582/15*$B$1))","v":""},null,null,null,{"$f":"IF(I582=\"\",\"\",HOUR(I582-H582)*60+MINUTE(I582-H582))","v":""},{"$f":"IF(K582=\"\",\"\",IF(K582/15*$A$1,K582/15*$B$1))","v":""},null,null,null,{"$f":"IF(N582=\"\",\"\",HOUR(N582-M582)*60+MINUTE(N582-M582))","v":""},{"$f":"IF(O582=\"\",\"\",IF(O582/15*$A$1,O582/15*$B$1))","v":""},null,null,null,{"$f":"IF(S582=\"\",\"\",HOUR(S582-R582)*60+MINUTE(S582-R582))","v":""},{"$f":"IF(U582=\"\",\"\",IF(U582/15*$A$1,U582/15*$B$1))","v":""}]
[null,null,null,null,null,"","",null,null,null,"","",null,null,null,"","",null,null,null,"",""]
[null,null,null,null,null,"","",null,null,null,"","",null,null,null,"","",null,null,null,"",""]
[null,null,null,null,null,"","",null,null,null,"","",null,null,null,"","",null,null,null,"",""]
[null,null,null,null,null,"","",null,null,null,"","",null,null,null,"","",null,null,null,"",""]
[null,null,null,null,null,"","",null,null,null,"","",null,null,null,"","",null,null,null,"",""]
[null,null,null,null,null,"","",null,null,null,"","",null,null,null,"","",null,null,null,"",""]
[null,null,null,null,null,"","",null,null,null,"","",null,null,null,"","",null,null,null,"",""]
[null,null,null,null,null,"","",null,null,null,"","",null,null,null,"","",null,null,null,"",""]
[null,null,null,null,null,"","",null,null,null,"","",null,null,null,"","",null,null,null,"",""]
[null,null,null,null,null,"","",null,null,null,"","",null,null,null,"","",null,null,null,"",""]
[null,null,null,null,null,"","",null,null,null,"","",null,null,null,"","",null,null,null,"",""]
[null,null,null,null,null,"","",null,null,null,"","",null,null,null,"","",null,null,null,"",""]
[null,null,null,null,null,"","",null,null,null,"","",null,null,null,"","",null,null,null,"",""]
[null,null,null,null,null,"","",null,null,null,"","",null,null,null,"","",null,null,null,"",""]
[null,null,null,null,null,"","",null,null,null,"","",null,null,null,"","",null,null,null,"",""]
[null,null,null,null,null,"","",null,null,null,"","",null,null,null,"","",null,null,null,"",""]
[null,null,null,null,null,"","",null,null,null,"","",null,null,null,"","",null,null,null,"",""]
[null,null,null,null,null,"","",null,null,null,"","",null,null,null,"","",null,null,null,"",""]
[null,null,null,null,null,"","",null,null,null,"","",null,null,null,"","",null,null,null,"",""]
[null,null,null,null,null,"","",null,null,null,"","",null,null,null,"","",null,null,null,"",""]
[null,null,null,null,null,"","",null,null,null,"","",null,null,null,"","",null,null,null,"",""]
[null,null,null,null,null,"","",null,null,null,"","",null,null,null,"","",null,null,null,"",""]
[null,null,null,null,null,"","",null,null,null,"","",null,null,null,"","",null,null,null,"",""]
[null,null,null,null,null,"","",null,null,null,"","",null,null,null,"","",null,null,null,"",""]
[null,null,null,null,null,"","",null,null,null,"","",null,null,null,"","",null,null,null,"",""]
[null,null,null,null,null,"","",null,null,null,"","",null,null,null,"","",null,null,null,"",""]
[null,null,null,null,null,"","",null,null,null,"","",null,null,null,"","",null,null,null,"",""]
[null,null,null,null,null,"","",null,null,null,"","",null,null,null,"","",null,null,null,"",""]
[null,null,null,null,null,"","",null,null,null,"","",null,null,null,"","",null,null,null,"",""]
[null,null,null,null,null,"","",null,null,null,"","",null,null,null,"","",null,null,null,"",""]
[null,null,null,null,null,"","",null,null,null,"","",null,null,null,"","",null,null,null,"",""]
[null,null,null,null,null,"","",null,null,null,"","",null,null,null,"","",null,null,null,"",""]
[null,null,null,null,null,"","",null,null,null,"","",null,null,null,"","",null,null,null,"",""]
[null,null,null,null,null,"","",null,null,null,"","",null,null,null,"","",null,null,null,"",""]
[null,null,null,null,null,"","",null,null,null,"","",null,null,null,"","",null,null,null,"",""]
[null,null,null,null,null,"","",null,null,null,"","",null,null,null,"","",null,null,null,"",""]
[null,null,null,null,null,"","",null,null,null,"","",null,null,null,"","",null,null,null,"",""]
[null,null,null,null,null,"","",null,null,null,"","",null,null,null,"","",null,null,null,"",""]
[null,null,null,null,null,"","",null,null,null,"","",null,null,null,"","",null,null,null,"",""]
[null,null,null,null,null,"","",null,null,null,"","",null,null,null,"","",null,null,null,"",""]
[null,null,null,null,null,"","",null,null,null,"","",null,null,null,"","",null,null,null,"",""]
[null,null,null,null,null,"","",null,null,null,"","",null,null,null,"","",null,null,null,"",""]
[null,null,null,null,null,"","",null,null,null,"","",null,null,null,"","",null,null,null,"",""]
[null,null,null,null,null,"","",null,null,null,"","",null,null,null,"","",null,null,null,"",""]
[null,null,null,null,null,"","",null,null,null,"","",null,null,null,"","",null,null,null,"",""]
[null,null,null,null,null,"","",null,null,null,"","",null,null,null,"","",null,null,null,"",""]
[null,null,null,null,null,"","",null,null,null,"","",null,null,null,"","",null,null,null,"",""]
[null,null,null,null,null,"","",null,null,null,"","",null,null,null,"","",null,null,null,"",""]
[null,null,null,null,null,"","",null,null,null,"","",null,null,null,"","",null,null,null,"",""]
[null,null,null,null,null,"","",null,null,null,"","",null,null,null,"","",null,null,null,"",""]
[null,null,null,null,null,"","",null,null,null,"","",null,null,null,"","",null,null,null,"",""]
[null,null,null,null,null,"","",null,null,null,"","",null,null,null,"","",null,null,null,"",""]
[null,null,null,null,null,"","",null,null,null,"","",null,null,null,"","",null,null,null,"",""]
[null,null,null,null,null,"","",null,null,null,"","",null,null,null,"","",null,null,null,"",""]
[null,null,null,null,null,"","",null,null,null,"","",null,null,null,"","",null,null,null,"",""]
[null,null,null,null,null,"","",null,null,null,"","",null,null,null,"","",null,null,null,"",""]
[null,null,null,null,null,"","",null,null,null,"","",null,null,null,"","",null,null,null,"",""]
[null,null,null,null,null,"","",null,null,null,"","",null,null,null,"","",null,null,null,"",""]
[null,null,null,null,null,"","",null,null,null,"","",null,null,null,"","",null,null,null,"",""]
[null,null,null,null,null,"","",null,null,null,"","",null,null,null,"","",null,null,null,"",""]
[null,null,null,null,null,"","",null,null,null,"","",null,null,null,"","",null,null,null,"",""]
[null,null,null,null,null,"","",null,null,null,"","",null,null,null,"","",null,null,null,"",""]
[null,null,null,null,null,"","",null,null,null,"","",null,null,null,"","",null,null,null,"",""]
[null,null,null,null,null,{"$f":"IF(D646=\"\",\"\",HOUR(D646-C646)*60+MINUTE(D646-C646))","v":""},{"$f":"IF(F646=\"\",\"\",IF(F646/15*$A$1,F646/15*$B$1))","v":""},null,null,null,{"$f":"IF(I646=\"\",\"\",HOUR(I646-H646)*60+MINUTE(I646-H646))","v":""},{"$f":"IF(K646=\"\",\"\",IF(K646/15*$A$1,K646/15*$B$1))","v":""},null,null,null,{"$f":"IF(N646=\"\",\"\",HOUR(N646-M646)*60+MINUTE(N646-M646))","v":""},{"$f":"IF(O646=\"\",\"\",IF(O646/15*$A$1,O646/15*$B$1))","v":""},null,null,null,{"$f":"IF(S646=\"\",\"\",HOUR(S646-R646)*60+MINUTE(S646-R646))","v":""},{"$f":"IF(U646=\"\",\"\",IF(U646/15*$A$1,U646/15*$B$1))","v":""}]
[null,null,null,null,null,"","",null,null,null,"","",null,null,null,"","",null,null,null,"",""]
[null,null,null,null,null,"","",null,null,null,"","",null,null,null,"","",null,null,null,"",""]
[null,null,null,null,null,"","",null,null,null,"","",null,null,null,"","",null,null,null,"",""]
[null,null,null,null,null,"","",null,null,null,"","",null,null,null,"","",null,null,null,"",""]
[null,null,null,null,null,"","",null,null,null,"","",null,null,null,"","",null,null,null,"",""]
[null,null,null,null,null,"","",null,null,null,"","",null,null,null,"","",null,null,null,"",""]
[null,null,null,null,null,"","",null,null,null,"","",null,null,null,"","",null,null,null,"",""]
[null,null,null,null,null,"","",null,null,null,"","",null,null,null,"","",null,null,null,"",""]
[null,null,null,null,null,"","",null,null,null,"","",null,null,null,"","",null,null,null,"",""]
[null,null,null,null,null,"","",null,null,null,"","",null,null,null,"","",null,null,null,"",""]
[null,null,null,null,null,"","",null,null,null,"","",null,null,null,"","",null,null,null,"",""]
[null,null,null,null,null,"","",null,null,null,"","",null,null,null,"","",null,null,null,"",""]
[null,null,null,null,null,"","",null,null,null,"","",null,null,null,"","",null,null,null,"",""]
[null,null,null,null,null,"","",null,null,null,"","",null,null,null,"","",null,null,null,"",""]
[null,null,null,null,null,"","",null,null,null,"","",null,null,null,"","",null,null,null,"",""]
[null,null,null,null,null,"","",null,null,null,"","",null,null,null,"","",null,null,null,"",""]
[null,null,null,null,null,"","",null,null,null,"","",null,null,null,"","",null,null,null,"",""]
[null,null,null,null,null,"","",null,null,null,"","",null,null,null,"","",null,null,null,"",""]
[null,null,null,null,null,"","",null,null,null,"","",null,null,null,"","",null,null,null,"",""]
[null,null,null,null,null,"","",null,null,null,"","",null,null,null,"","",null,null,null,"",""]
[null,null,null,null,null,"","",null,null,null,"","",null,null,null,"","",null,null,null,"",""]
[null,null,null,null,null,"","",null,null,null,"","",null,null,null,"","",null,null,null,"",""]
[null,null,null,null,null,"","",null,null,null,"","",null,null,null,"","",null,null,null,"",""]
[null,null,null,null,null,"","",null,null,null,"","",null,null,null,"","",null,null,null,"",""]
[null,null,null,null,null,"","",null,null,null,"","",null,null,null,"","",null,null,null,"",""]
[null,null,null,null,null,"","",null,null,null,"","",null,null,null,"","",null,null,null,"",""]
[null,null,null,null,null,"","",null,null,null,"","",null,null,null,"","",null,null,null,"",""]
[null,null,null,null,null,"","",null,null,null,"","",null,null,null,"","",null,null,null,"",""]
[null,null,null,null,null,"","",null,null,null,"","",null,null,null,"","",null,null,null,"",""]
[null,null,null,null,null,"","",null,null,null,"","",null,null,null,"","",null,null,null,"",""]
[null,null,null,null,null,"","",null,null,null,"","",null,null,null,"","",null,null,null,"",""]
[null,null,null,null,null,"","",null,null,null,"","",null,null,null,"","",null,null,null,"",""]
[null,null,null,null,null,"","",null,null,null,"","",null,null,null,"","",null,null,null,"",""]
[null,null,null,null,null,"","",null,null,null,"","",null,null,null,"","",null,null,null,"",""]
[null,null,null,null,null,"","",null,null,null,"","",null,null,null,"","",null,null,null,"",""]
[null,null,null,null,null,"","",null,null,null,"","",null,null,null,"","",null,null,null,"",""]
[null,null,null,null,null,"","",null,null,null,"","",null,null,null,"","",null,null,null,"",""]
[null,null,null,null,null,"","",null,null,null,"","",null,null,null,"","",null,null,null,"",""]
[null,null,null,null,null,"","",null,null,null,"","",null,null,null,"","",null,null,null,"",""]
[null,null,null,null,null,"","",null,null,null,"","",null,null,null,"","",null,null,null,"",""]
[null,null,null,null,null,"","",null,null,null,"","",null,null,null,"","",null,null,null,"",""]
[null,null,null,null,null,"","",null,null,null,"","",null,null,null,"","",null,null,null,"",""]
[null,null,null,null,null,"","",null,null,null,"","",null,null,null,"","",null,null,null,"",""]
[null,null,null,null,null,"","",null,null,null,"","",null,null,null,"","",null,null,null,"",""]
[null,null,null,null,null,"","",null,null,null,"","",null,null,null,"","",null,null,null,"",""]
[null,null,null,null,null,"","",null,null,null,"","",null,null,null,"","",null,null,null,"",""]
[null,null,null,null,null,"","",null,null,null,"","",null,null,null,"","",null,null,null,"",""]
[null,null,null,null,null,"","",null,null,null,"","",null,null,null,"","",null,null,null,"",""]
[null,null,null,null,null,"","",null,null,null,"","",null,null,null,"","",null,null,null,"",""]
[null,null,null,null,null,"","",null,null,null,"","",null,null,null,"","",null,null,null,"",""]
[null,null,null,null,null,"","",null,null,null,"","",null,null,null,"","",null,null,null,"",""]
[null,null,null,null,null,"","",null,null,null,"","",null,null,null,"","",null,null,null,"",""]
[null,null,null,null,null,"","",null,null,null,"","",null,null,null,"","",null,null,null,"",""]
[null,null,null,null,null,"","",null,null,null,"","",null,null,null,"","",null,null,null,"",""]
[null,null,null,null,null,"","",null,null,null,"","",null,null,null,"","",null,null,null,"",""]
[null,null,null,null,null,"","",null,null,null,"","",null,null,null,"","",null,null,null,"",""]
[null,null,null,null,null,"","",null,null,null,"","",null,null,null,"","",null,null,null,"",""]
[null,null,null,null,null,"","",null,null,null,"","",null,null,null,"","",null,null,null,"",""]
[null,null,null,null,null,"","",null,null,null,"","",null,null,null,"","",null,null,null,"",""]
[null,null,null,null,null,"","",null,null,null,"","",null,null,null,"","",null,null,null,"",""]
[null,null,null,null,null,"","",null,null,null,"","",null,null,null,"","",null,null,null,"",""]
[null,null,null,null,null,"","",null,null,null,"","",null,null,null,"","",null,null,null,"",""]
[null,null,null,null,null,"","",null,null,null,"","",null,null,null,"","",null,null,null,"",""]
[null,null,null,null,null,{"$f":"IF(D710=\"\",\"\",HOUR(D710-C710)*60+MINUTE(D710-C710))","v":""},{"$f":"IF(F710=\"\",\"\",IF(F710/15*$A$1,F710/15*$B$1))","v":""},null,null,null,{"$f":"IF(I710=\"\",\"\",HOUR(I710-H710)*60+MINUTE(I710-H710))","v":""},{"$f":"IF(K710=\"\",\"\",IF(K710/15*$A$1,K710/15*$B$1))","v":""},null,null,null,{"$f":"IF(N710=\"\",\"\",HOUR(N710-M710)*60+MINUTE(N710-M710))","v":""},{"$f":"IF(O710=\"\",\"\",IF(O710/15*$A$1,O710/15*$B$1))","v":""},null,null,null,{"$f":"IF(S710=\"\",\"\",HOUR(S710-R710)*60+MINUTE(S710-R710))","v":""},{"$f":"IF(U710=\"\",\"\",IF(U710/15*$A$1,U710/15*$B$1))","v":""}]
[null,null,null,null,null,"","",null,null,null,"","",null,null,null,"","",null,null,null,"",""]
[null,null,null,null,null,"","",null,null,null,"","",null,null,null,"","",null,null,null,"",""]
[null,null,null,null,null,"","",null,null,null,"","",null,null,null,"","",null,null,null,"",""]
[null,null,null,null,null,"","",null,null,null,"","",null,null,null,"","",null,null,null,"",""]
[null,null,null,null,null,"","",null,null,null,"","",null,null,null,"","",null,null,null,"",""]
[null,null,null,null,null,"","",null,null,null,"","",null,null,null,"","",null,null,null,"",""]
[null,null,null,null,null,"","",null,null,null,"","",null,null,null,"","",null,null,null,"",""]
[null,null,null,null,null,"","",null,null,null,"","",null,null,null,"","",null,null,null,"",""]
[null,null,null,null,null,"","",null,null,null,"","",null,null,null,"","",null,null,null,"",""]
[null,null,null,null,null,"","",null,null,null,"","",null,null,null,"","",null,null,null,"",""]
[null,null,null,null,null,"","",null,null,null,"","",null,null,null,"","",null,null,null,"",""]
[null,null,null,null,null,"","",null,null,null,"","",null,null,null,"","",null,null,null,"",""]
[null,null,null,null,null,"","",null,null,null,"","",null,null,null,"","",null,null,null,"",""]
[null,null,null,null,null,"","",null,null,null,"","",null,null,null,"","",null,null,null,"",""]
[null,null,null,null,null,"","",null,null,null,"","",null,null,null,"","",null,null,null,"",""]
[null,null,null,null,null,"","",null,null,null,"","",null,null,null,"","",null,null,null,"",""]
[null,null,null,null,null,"","",null,null,null,"","",null,null,null,"","",null,null,null,"",""]
[null,null,null,null,null,"","",null,null,null,"","",null,null,null,"","",null,null,null,"",""]
[null,null,null,null,null,"","",null,null,null,"","",null,null,null,"","",null,null,null,"",""]
[null,null,null,null,null,"","",null,null,null,"","",null,null,null,"","",null,null,null,"",""]
[null,null,null,null,null,"","",null,null,null,"","",null,null,null,"","",null,null,null,"",""]
[null,null,null,null,null,"","",null,null,null,"","",null,null,null,"","",null,null,null,"",""]
[null,null,null,null,null,"","",null,null,null,"","",null,null,null,"","",null,null,null,"",""]
[null,null,null,null,null,"","",null,null,null,"","",null,null,null,"","",null,null,null,"",""]
[null,null,null,null,null,"","",null,null,null,"","",null,null,null,"","",null,null,null,"",""]
[null,null,null,null,null,"","",null,null,null,"","",null,null,null,"","",null,null,null,"",""]
[null,null,null,null,null,"","",null,null,null,"","",null,null,null,"","",null,null,null,"",""]
[null,null,null,null,null,"","",null,null,null,"","",null,null,null,"","",null,null,null,"",""]
[null,null,null,null,null,"","",null,null,null,"","",null,null,null,"","",null,null,null,"",""]
[null,null,null,null,null,"","",null,null,null,"","",null,null,null,"","",null,null,null,"",""]
[null,null,null,null,null,"","",null,null,null,"","",null,null,null,"","",null,null,null,"",""]
[null,null,null,null,null,"","",null,null,null,"","",null,null,null,"","",null,null,null,"",""]
[null,null,null,null,null,"","",null,null,null,"","",null,null,null,"","",null,null,null,"",""]
[null,null,null,null,null,"","",null,null,null,"","",null,null,null,"","",null,null,null,"",""]
[null,null,null,null,null,"","",null,null,null,"","",null,null,null,"","",null,null,null,"",""]
[null,null,null,null,null,"","",null,null,null,"","",null,null,null,"","",null,null,null,"",""]
[null,null,null,null,null,"","",null,null,null,"","",null,null,null,"","",null,null,null,"",""]
[null,null,null,null,null,"","",null,null,null,"","",null,null,null,"","",null,null,null,"",""]
[null,null,null,null,null,"","",null,null,null,"","",null,null,null,"","",null,null,null,"",""]
[null,null,null,null,null,"","",null,null,null,"","",null,null,null,"","",null,null,null,"",""]
[null,null,null,null,null,"","",null,null,null,"","",null,null,null,"","",null,null,null,"",""]
[null,null,null,null,null,"","",null,null,null,"","",null,null,null,"","",null,null,null,"",""]
[null,null,null,null,null,"","",null,null,null,"","",null,null,null,"","",null,null,null,"",""]
[null,null,null,null,null,"","",null,null,null,"","",null,null,null,"","",null,null,null,"",""]
[null,null,null,null,null,"","",null,null,null,"","",null,null,null,"","",null,null,null,"",""]
[null,null,null,null,null,"","",null,null,null,"","",null,null,null,"","",null,null,null,"",""]
[null,null,null,null,null,"","",null,null,null,"","",null,null,null,"","",null,null,null,"",""]
[null,null,null,null,null,"","",null,null,null,"","",null,null,null,"","",null,null,null,"",""]
[null,null,null,null,null,"","",null,null,null,"","",null,null,null,"","",null,null,null,"",""]
[null,null,null,null,null,"","",null,null,null,"","",null,null,null,"","",null,null,null,"",""]
[null,null,null,null,null,"","",null,null,null,"","",null,null,null,"","",null,null,null,"",""]
[null,null,null,null,null,"","",null,null,null,"","",null,null,null,"","",null,null,null,"",""]
[null,null,null,null,null,"","",null,null,null,"","",null,null,null,"","",null,null,null,"",""]
[null,null,null,null,null,"","",null,null,null,"","",null,null,null,"","",null,null,null,"",""]
[null,null,null,null,null,"","",null,null,null,"","",null,null,null,"","",null,null,null,"",""]
[null,null,null,null,null,"","",null,null,null,"","",null,null,null,"","",null,null,null,"",""]
[null,null,null,null,null,"","",null,null,null,"","",null,null,null,"","",null,null,null,"",""]
[null,null,null,null,null,"","",null,null,null,"","",null,null,null,"","",null,null,null,"",""]
[null,null,null,null,null,"","",null,null,null,"","",null,null,null,"","",null,null,null,"",""]
[null,null,null,null,null,"","",null,null,null,"","",null,null,null,"","",null,null,null,"",""]
[null,null,null,null,null,"","",null,null,null,"","",null,null,null,"","",null,null,null,"",""]
[null,null,null,null,null,"","",null,null,null,"","",null,null,null,"","",null,null,null,"",""]
[null,null,null,null,null,"","",null,null,null,"","",null,null,null,"","",null,null,null,"",""]
[null,null,null,null,null,{"$f":"IF(D774=\"\",\"\",HOUR(D774-C774)*60+MINUTE(D774-C774))","v":""},{"$f":"IF(F774=\"\",\"\",IF(F774/15*$A$1,F774/15*$B$1))","v":""},null,null,null,{"$f":"IF(I774=\"\",\"\",HOUR(I774-H774)*60+MINUTE(I774-H774))","v":""},{"$f":"IF(K774=\"\",\"\",IF(K774/15*$A$1,K774/15*$B$1))","v":""},null,null,null,{"$f":"IF(N774=\"\",\"\",HOUR(N774-M774)*60+MINUTE(N774-M774))","v":""},{"$f":"IF(O774=\"\",\"\",IF(O774/15*$A$1,O774/15*$B$1))","v":""},null,null,null,{"$f":"IF(S774=\"\",\"\",HOUR(S774-R774)*60+MINUTE(S774-R774))","v":""},{"$f":"IF(U774=\"\",\"\",IF(U774/15*$A$1,U774/15*$B$1))","v":""}]
[null,null,null,null,null,"","",null,null,null,"","",null,null,null,"","",null,null,null,"",""]
[null,null,null,null,null,"","",null,null,null,"","",null,null,null,"","",null,null,null,"",""]
[null,null,null,null,null,"","",null,null,null,"","",null,null,null,"","",null,null,null,"",""]
[null,null,null,null,null,"","",null,null,null,"","",null,null,null,"","",null,null,null,"",""]
[null,null,null,null,null,"","",null,null,null,"","",null,null,null,"","",null,null,null,"",""]
[null,null,null,null,null,"","",null,null,null,"","",null,null,null,"","",null,null,null,"",""]
[null,null,null,null,null,"","",null,null,null,"","",null,null,null,"","",null,null,null,"",""]
[null,null,null,null,null,"","",null,null,null,"","",null,null,null,"","",null,null,null,"",""]
[null,null,null,null,null,"","",null,null,null,"","",null,null,null,"","",null,null,null,"",""]
[null,null,null,null,null,"","",null,null,null,"","",null,null,null,"","",null,null,null,"",""]
[null,null,null,null,null,"","",null,null,null,"","",null,null,null,"","",null,null,null,"",""]
[null,null,null,null,null,"","",null,null,null,"","",null,null,null,"","",null,null,null,"",""]
[null,null,null,null,null,"","",null,null,null,"","",null,null,null,"","",null,null,null,"",""]
[null,null,null,null,null,"","",null,null,null,"","",null,null,null,"","",null,null,null,"",""]
[null,null,null,null,null,"","",null,null,null,"","",null,null,null,"","",null,null,null,"",""]
[null,null,null,null,null,"","",null,null,null,"","",null,null,null,"","",null,null,null,"",""]
[null,null,null,null,null,"","",null,null,null,"","",null,null,null,"","",null,null,null,"",""]
[null,null,null,null,null,"","",null,null,null,"","",null,null,null,"","",null,null,null,"",""]
[null,null,null,null,null,"","",null,null,null,"","",null,null,null,"","",null,null,null,"",""]
[null,null,null,null,null,"","",null,null,null,"","",null,null,null,"","",null,null,null,"",""]
[null,null,null,null,null,"","",null,null,null,"","",null,null,null,"","",null,null,null,"",""]
[null,null,null,null,null,"","",null,null,null,"","",null,null,null,"","",null,null,null,"",""]
[null,null,null,null,null,"","",null,null,null,"","",null,null,null,"","",null,null,null,"",""]
[null,null,null,null,null,"","",null,null,null,"","",null,null,null,"","",null,null,null,"",""]
[null,null,null,null,null,"","",null,null,null,"","",null,null,null,"","",null,null,null,"",""]
[null,null,null,null,null,"","",null,null,null,"","",null,null,null,"","",null,null,null,"",""]
[null,null,null,null,null,"","",null,null,null,"","",null,null,null,"","",null,null,null,"",""]
[null,null,null,null,null,"","",null,null,null,"","",null,null,null,"","",null,null,null,"",""]
[null,null,null,null,null,"","",null,null,null,"","",null,null,null,"","",null,null,null,"",""]
[null,null,null,null,null,"","",null,null,null,"","",null,null,null,"","",null,null,null,"",""]
[null,null,null,null,null,"","",null,null,null,"","",null,null,null,"","",null,null,null,"",""]
[null,null,null,null,null,"","",null,null,null,"","",null,null,null,"","",null,null,null,"",""]
[null,null,null,null,null,"","",null,null,null,"","",null,null,null,"","",null,null,null,"",""]
[null,null,null,null,null,"","",null,null,null,"","",null,null,null,"","",null,null,null,"",""]
[null,null,null,null,null,"","",null,null,null,"","",null,null,null,"","",null,null,null,"",""]
[null,null,null,null,null,"","",null,null,null,"","",null,null,null,"","",null,null,null,"",""]
[null,null,null,null,null,"","",null,null,null,"","",null,null,null,"","",null,null,null,"",""]
[null,null,null,null,null,"","",null,null,null,"","",null,null,null,"","",null,null,null,"",""]
[null,null,null,null,null,"","",null,null,null,"","",null,null,null,"","",null,null,null,"",""]
[null,null,null,null,null,"","",null,null,null,"","",null,null,null,"","",null,null,null,"",""]
[null,null,null,null,null,"","",null,null,null,"","",null,null,null,"","",null,null,null,"",""]
[null,null,null,null,null,"","",null,null,null,"","",null,null,null,"","",null,null,null,"",""]
[null,null,null,null,null,"","",null,null,null,"","",null,null,null,"","",null,null,null,"",""]
[null,null,null,null,null,"","",null,null,null,"","",null,null,null,"","",null,null,null,"",""]
[null,null,null,null,null,"","",null,null,null,"","",null,null,null,"","",null,null,null,"",""]
[null,null,null,null,null,"","",null,null,null,"","",null,null,null,"","",null,null,null,"",""]
[null,null,null,null,null,"","",null,null,null,"","",null,null,null,"","",null,null,null,"",""]
[null,null,null,null,null,"","",null,null,null,"","",null,null,null,"","",null,null,null,"",""]
[null,null,null,null,null,"","",null,null,null,"","",null,null,null,"","",null,null,null,"",""]
[null,null,null,null,null,"","",null,null,null,"","",null,null,null,"","",null,null,null,"",""]
[null,null,null,null,null,"","",null,null,null,"","",null,null,null,"","",null,null,null,"",""]
[null,null,null,null,null,"","",null,null,null,"","",null,null,null,"","",null,null,null,"",""]
[null,null,null,null,null,"","",null,null,null,"","",null,null,null,"","",null,null,null,"",""]
[null,null,null,null,null,"","",null,null,null,"","",null,null,null,"","",null,null,null,"",""]
[null,null,null,null,null,"","",null,null,null,"","",null,null,null,"","",null,null,null,"",""]
[null,null,null,null,null,"","",null,null,null,"","",null,null,null,"","",null,null,null,"",""]
[null,null,null,null,null,"","",null,null,null,"","",null,null,null,"","",null,null,null,"",""]
[null,null,null,null,null,"","",null,null,null,"","",null,null,null,"","",null,null,null,"",""]
[null,null,null,null,null,"","",null,null,null,"","",null,null,null,"","",null,null,null,"",""]
[null,null,null,null,null,"","",null,null,null,"","",null,null,null,"","",null,null,null,"",""]
[null,null,null,null,null,"","",null,null,null,"","",null,null,null,"","",null,null,null,"",""]
[null,null,null,null,null,"","",null,null,null,"","",null,null,null,"","",null,null,null,"",""]
[null,null,null,null,null,"","",null,null,null,"","",null,null,null,"","",null,null,null,"",""]
[null,null,null,null,null,{"$f":"IF(D838=\"\",\"\",HOUR(D838-C838)*60+MINUTE(D838-C838))","v":""},{"$f":"IF(F838=\"\",\"\",IF(F838/15*$A$1,F838/15*$B$1))","v":""},null,null,null,{"$f":"IF(I838=\"\",\"\",HOUR(I838-H838)*60+MINUTE(I838-H838))","v":""},{"$f":"IF(K838=\"\",\"\",IF(K838/15*$A$1,K838/15*$B$1))","v":""},null,null,null,{"$f":"IF(N838=\"\",\"\",HOUR(N838-M838)*60+MINUTE(N838-M838))","v":""},{"$f":"IF(O838=\"\",\"\",IF(O838/15*$A$1,O838/15*$B$1))","v":""},null,null,null,{"$f":"IF(S838=\"\",\"\",HOUR(S838-R838)*60+MINUTE(S838-R838))","v":""},{"$f":"IF(U838=\"\",\"\",IF(U838/15*$A$1,U838/15*$B$1))","v":""}]
[null,null,null,null,null,"","",null,null,null,"","",null,null,null,"","",null,null,null,"",""]
[null,null,null,null,null,"","",null,null,null,"","",null,null,null,"","",null,null,null,"",""]
[null,null,null,null,null,"","",null,null,null,"","",null,null,null,"","",null,null,null,"",""]
[null,null,null,null,null,"","",null,null,null,"","",null,null,null,"","",null,null,null,"",""]
[null,null,null,null,null,"","",null,null,null,"","",null,null,null,"","",null,null,null,"",""]
[null,null,null,null,null,"","",null,null,null,"","",null,null,null,"","",null,null,null,"",""]
[null,null,null,null,null,"","",null,null,null,"","",null,null,null,"","",null,null,null,"",""]
[null,null,null,null,null,"","",null,null,null,"","",null,null,null,"","",null,null,null,"",""]
[null,null,null,null,null,"","",null,null,null,"","",null,null,null,"","",null,null,null,"",""]
[null,null,null,null,null,"","",null,null,null,"","",null,null,null,"","",null,null,null,"",""]
[null,null,null,null,null,"","",null,null,null,"","",null,null,null,"","",null,null,null,"",""]
[null,null,null,null,null,"","",null,null,null,"","",null,null,null,"","",null,null,null,"",""]
[null,null,null,null,null,"","",null,null,null,"","",null,null,null,"","",null,null,null,"",""]
[null,null,null,null,null,"","",null,null,null,"","",null,null,null,"","",null,null,null,"",""]
[null,null,null,null,null,"","",null,null,null,"","",null,null,null,"","",null,null,null,"",""]
[null,null,null,null,null,"","",null,null,null,"","",null,null,null,"","",null,null,null,"",""]
[null,null,null,null,null,"","",null,null,null,"","",null,null,null,"","",null,null,null,"",""]
[null,null,null,null,null,"","",null,null,null,"","",null,null,null,"","",null,null,null,"",""]
[null,null,null,null,null,"","",null,null,null,"","",null,null,null,"","",null,null,null,"",""]
[null,null,null,null,null,"","",null,null,null,"","",null,null,null,"","",null,null,null,"",""]
[null,null,null,null,null,"","",null,null,null,"","",null,null,null,"","",null,null,null,"",""]
[null,null,null,null,null,"","",null,null,null,"","",null,null,null,"","",null,null,null,"",""]
[null,null,null,null,null,"","",null,null,null,"","",null,null,null,"","",null,null,null,"",""]
[null,null,null,null,null,"","",null,null,null,"","",null,null,null,"","",null,null,null,"",""]
[null,null,null,null,null,"","",null,null,null,"","",null,null,null,"","",null,null,null,"",""]
[null,null,null,null,null,"","",null,null,null,"","",null,null,null,"","",null,null,null,"",""]
[null,null,null,null,null,"","",null,null,null,"","",null,null,null,"","",null,null,null,"",""]
[null,null,null,null,null,"","",null,null,null,"","",null,null,null,"","",null,null,null,"",""]
[null,null,null,null,null,"","",null,null,null,"","",null,null,null,"","",null,null,null,"",""]
[null,null,null,null,null,"","",null,null,null,"","",null,null,null,"","",null,null,null,"",""]
[null,null,null,null,null,"","",null,null,null,"","",null,null,null,"","",null,null,null,"",""]
[null,null,null,null,null,"","",null,null,null,"","",null,null,null,"","",null,null,null,"",""]
[null,null,null,null,null,"","",null,null,null,"","",null,null,null,"","",null,null,null,"",""]
[null,null,null,null,null,"","",null,null,null,"","",null,null,null,"","",null,null,null,"",""]
[null,null,null,null,null,"","",null,null,null,"","",null,null,null,"","",null,null,null,"",""]
[null,null,null,null,null,"","",null,null,null,"","",null,null,null,"","",null,null,null,"",""]
[null,null,null,null,null,"","",null,null,null,"","",null,null,null,"","",null,null,null,"",""]
[null,null,null,null,null,"","",null,null,null,"","",null,null,null,"","",null,null,null,"",""]
[null,null,null,null,null,"","",null,null,null,"","",null,null,null,"","",null,null,null,"",""]
[null,null,null,null,null,"","",null,null,null,"","",null,null,null,"","",null,null,null,"",""]
[null,null,null,null,null,"","",null,null,null,"","",null,null,null,"","",null,null,null,"",""]
[null,null,null,null,null,"","",null,null,null,"","",null,null,null,"","",null,null,null,"",""]
[null,null,null,null,null,"","",null,null,null,"","",null,null,null,"","",null,null,null,"",""]
[null,null,null,null,null,"","",null,null,null,"","",null,null,null,"","",null,null,null,"",""]
[null,null,null,null,null,"","",null,null,null,"","",null,null,null,"","",null,null,null,"",""]
[null,null,null,null,null,"","",null,null,null,"","",null,null,null,"","",null,null,null,"",""]
[null,null,null,null,null,"","",null,null,null,"","",null,null,null,"","",null,null,null,"",""]
[null,null,null,null,null,"","",null,null,null,"","",null,null,null,"","",null,null,null,"",""]
[null,null,null,null,null,"","",null,null,null,"","",null,null,null,"","",null,null,null,"",""]
[null,null,null,null,null,"","",null,null,null,"","",null,null,null,"","",null,null,null,"",""]
[null,null,null,null,null,"","",null,null,null,"","",null,null,null,"","",null,null,null,"",""]
[null,null,null,null,null,"","",null,null,null,"","",null,null,null,"","",null,null,null,"",""]
[null,null,null,null,null,"","",null,null,null,"","",null,null,null,"","",null,null,null,"",""]
[null,null,null,null,null,"","",null,null,null,"","",null,null,null,"","",null,null,null,"",""]
[null,null,null,null,null,"","",null,null,null,"","",null,null,null,"","",null,null,null,"",""]
[null,null,null,null,null,"","",null,null,null,"","",null,null,null,"","",null,null,null,"",""]
[null,null,null,null,null,"","",null,null,null,"","",null,null,null,"","",null,null,null,"",""]
[null,null,null,null,null,"","",null,null,null,"","",null,null,null,"","",null,null,null,"",""]
[null,null,null,null,null,"","",null,null,null,"","",null,null,null,"","",null,null,null,"",""]
[null,null,null,null,null,"","",null,null,null,"","",null,null,null,"","",null,null,null,"",""]
[null,null,null,null,null,"","",null,null,null,"","",null,null,null,"","",null,null,null,"",""]
[null,null,null,null,null,"","",null,null,null,"","",null,null,null,"","",null,null,null,"",""]
[null,null,null,null,null,"","",null,null,null,"","",null,null,null,"","",null,null,null,"",""]
[null,null,null,null,null,{"$f":"IF(D902=\"\",\"\",HOUR(D902-C902)*60+MINUTE(D902-C902))","v":""},{"$f":"IF(F902=\"\",\"\",IF(F902/15*$A$1,F902/15*$B$1))","v":""},null,null,null,{"$f":"IF(I902=\"\",\"\",HOUR(I902-H902)*60+MINUTE(I902-H902))","v":""},{"$f":"IF(K902=\"\",\"\",IF(K902/15*$A$1,K902/15*$B$1))","v":""},null,null,null,{"$f":"IF(N902=\"\",\"\",HOUR(N902-M902)*60+MINUTE(N902-M902))","v":""},{"$f":"IF(O902=\"\",\"\",IF(O902/15*$A$1,O902/15*$B$1))","v":""},null,null,null,{"$f":"IF(S902=\"\",\"\",HOUR(S902-R902)*60+MINUTE(S902-R902))","v":""},{"$f":"IF(U902=\"\",\"\",IF(U902/15*$A$1,U902/15*$B$1))","v":""}]
[null,null,null,null,null,"","",null,null,null,"","",null,null,null,"","",null,null,null,"",""]
[null,null,null,null,null,"","",null,null,null,"","",null,null,null,"","",null,null,null,"",""]
[null,null,null,null,null,"","",null,null,null,"","",null,null,null,"","",null,null,null,"",""]
[null,null,null,null,null,"","",null,null,null,"","",null,null,null,"","",null,null,null,"",""]
[null,null,null,null,null,"","",null,null,null,"","",null,null,null,"","",null,null,null,"",""]
[null,null,null,null,null,"","",null,null,null,"","",null,null,null,"","",null,null,null,"",""]
[null,null,null,null,null,"","",null,null,null,"","",null,null,null,"","",null,null,null,"",""]
[null,null,null,null,null,"","",null,null,null,"","",null,null,null,"","",null,null,null,"",""]
[null,null,null,null,null,"","",null,null,null,"","",null,null,null,"","",null,null,null,"",""]
[null,null,null,null,null,"","",null,null,null,"","",null,null,null,"","",null,null,null,"",""]
[null,null,null,null,null,"","",null,null,null,"","",null,null,null,"","",null,null,null,"",""]
[null,null,null,null,null,"","",null,null,null,"","",null,null,null,"","",null,null,null,"",""]
[null,null,null,null,null,"","",null,null,null,"","",null,null,null,"","",null,null,null,"",""]
[null,null,null,null,null,"","",null,null,null,"","",null,null,null,"","",null,null,null,"",""]
[null,null,null,null,null,"","",null,null,null,"","",null,null,null,"","",null,null,null,"",""]
[null,null,null,null,null,"","",null,null,null,"","",null,null,null,"","",null,null,null,"",""]
[null,null,null,null,null,"","",null,null,null,"","",null,null,null,"","",null,null,null,"",""]
[null,null,null,null,null,"","",null,null,null,"","",null,null,null,"","",null,null,null,"",""]
[null,null,null,null,null,"","",null,null,null,"","",null,null,null,"","",null,null,null,"",""]
[null,null,null,null,null,"","",null,null,null,"","",null,null,null,"","",null,null,null,"",""]
[null,null,null,null,null,"","",null,null,null,"","",null,null,null,"","",null,null,null,"",""]
[null,null,null,null,null,"","",null,null,null,"","",null,null,null,"","",null,null,null,"",""]
[null,null,null,null,null,"","",null,null,null,"","",null,null,null,"","",null,null,null,"",""]
[null,null,null,null,null,"","",null,null,null,"","",null,null,null,"","",null,null,null,"",""]
[null,null,null,null,null,"","",null,null,null,"","",null,null,null,"","",null,null,null,"",""]
[null,null,null,null,null,"","",null,null,null,"","",null,null,null,"","",null,null,null,"",""]
[null,null,null,null,null,"","",null,null,null,"","",null,null,null,"","",null,null,null,"",""]
[null,null,null,null,null,"","",null,null,null,"","",null,null,null,"","",null,null,null,"",""]
[null,null,null,null,null,"","",null,null,null,"","",null,null,null,"","",null,null,null,"",""]
[null,null,null,null,null,"","",null,null,null,"","",null,null,null,"","",null,null,null,"",""]
[null,null,null,null,null,"","",null,null,null,"","",null,null,null,"","",null,null,null,"",""]
[null,null,null,null,null,"","",null,null,null,"","",null,null,null,"","",null,null,null,"",""]
[null,null,null,null,null,"","",null,null,null,"","",null,null,null,"","",null,null,null,"",""]
[null,null,null,null,null,"","",null,null,null,"","",null,null,null,"","",null,null,null,"",""]
[null,null,null,null,null,"","",null,null,null,"","",null,null,null,"","",null,null,null,"",""]
[null,null,null,null,null,"","",null,null,null,"","",null,null,null,"","",null,null,null,"",""]
[null,null,null,null,null,"","",null,null,null,"","",null,null,null,"","",null,null,null,"",""]
[null,null,null,null,null,"","",null,null,null,"","",null,null,null,"","",null,null,null,"",""]
[null,null,null,null,null,"","",null,null,null,"","",null,null,null,"","",null,null,null,"",""]
[null,null,null,null,null,"","",null,null,null,"","",null,null,null,"","",null,null,null,"",""]
[null,null,null,null,null,"","",null,null,null,"","",null,null,null,"","",null,null,null,"",""]
[null,null,null,null,null,"","",null,null,null,"","",null,null,null,"","",null,null,null,"",""]
[null,null,null,null,null,"","",null,null,null,"","",null,null,null,"","",null,null,null,"",""]
[null,null,null,null,null,"","",null,null,null,"","",null,null,null,"","",null,null,null,"",""]
[null,null,null,null,null,"","",null,null,null,"","",null,null,null,"","",null,null,null,"",""]
[null,null,null,null,null,"","",null,null,null,"","",null,null,null,"","",null,null,null,"",""]
[null,null,null,null,null,"","",null,null,null,"","",null,null,null,"","",null,null,null,"",""]
[null,null,null,null,null,"","",null,null,null,"","",null,null,null,"","",null,null,null,"",""]
[null,null,null,null,null,"","",null,null,null,"","",null,null,null,"","",null,null,null,"",""]
[null,null,null,null,null,"","",null,null,null,"","",null,null,null,"","",null,null,null,"",""]
[null,null,null,null,null,"","",null,null,null,"","",null,null,null,"","",null,null,null,"",""]
[null,null,null,null,null,"","",null,null,null,"","",null,null,null,"","",null,null,null,"",""]
[null,null,null,null,null,"","",null,null,null,"","",null,null,null,"","",null,null,null,"",""]
[null,null,null,null,null,"","",null,null,null,"","",null,null,null,"","",null,null,null,"",""]
[null,null,null,null,null,"","",null,null,null,"","",null,null,null,"","",null,null,null,"",""]
[null,null,null,null,null,"","",null,null,null,"","",null,null,null,"","",null,null,null,"",""]
[null,null,null,null,null,"","",null,null,null,"","",null,null,null,"","",null,null,null,"",""]
[null,null,null,null,null,"","",null,null,null,"","",null,null,null,"","",null,null,null,"",""]
[null,null,null,null,null,"","",null,null,null,"","",null,null,null,"","",null,null,null,"",""]
[null,null,null,null,null,"","",null,null,null,"","",null,null,null,"","",null,null,null,"",""]
[null,null,null,null,null,"","",null,null,null,"","",null,null,null,"","",null,null,null,"",""]
[null,null,null,null,null,"","",null,null,null,"","",null,null,null,"","",null,null,null,"",""]
[null,null,null,null,null,"","",null,null,null,"","",null,null,null,"","",null,null,null,"",""]
[null,null,null,null,null,{"$f":"IF(D966=\"\",\"\",HOUR(D966-C966)*60+MINUTE(D966-C966))","v":""},{"$f":"IF(F966=\"\",\"\",IF(F966/15*$A$1,F966/15*$B$1))","v":""},null,null,null,{"$f":"IF(I966=\"\",\"\",HOUR(I966-H966)*60+MINUTE(I966-H966))","v":""},{"$f":"IF(K966=\"\",\"\",IF(K966/15*$A$1,K966/15*$B$1))","v":""},null,null,null,{"$f":"IF(N966=\"\",\"\",HOUR(N966-M966)*60+MINUTE(N966-M966))","v":""},{"$f":"IF(O966=\"\",\"\",IF(O966/15*$A$1,O966/15*$B$1))","v":""},null,null,null,{"$f":"IF(S966=\"\",\"\",HOUR(S966-R966)*60+MINUTE(S966-R966))","v":""},{"$f":"IF(U966=\"\",\"\",IF(U966/15*$A$1,U966/15*$B$1))","v":""}]
[null,null,null,null,null,"","",null,null,null,"","",null,null,null,"","",null,null,null,"",""]
[null,null,null,null,null,"","",null,null,null,"","",null,null,null,"","",null,null,null,"",""]
[null,null,null,null,null,"","",null,null,null,"","",null,null,null,"","",null,null,null,"",""]
[null,null,null,null,null,"","",null,null,null,"","",null,null,null,"","",null,null,null,"",""]
[null,null,null,null,null,"","",null,null,null,"","",null,null,null,"","",null,null,null,"",""]
[null,null,null,null,null,"","",null,null,null,"","",null,null,null,"","",null,null,null,"",""]
[null,null,null,null,null,"","",null,null,null,"","",null,null,null,"","",null,null,null,"",""]
[null,null,null,null,null,"","",null,null,null,"","",null,null,null,"","",null,null,null,"",""]
[null,null,null,null,null,"","",null,null,null,"","",null,null,null,"","",null,null,null,"",""]
[null,null,null,null,null,"","",null,null,null,"","",null,null,null,"","",null,null,null,"",""]
[null,null,null,null,null,"","",null,null,null,"","",null,null,null,"","",null,null,null,"",""]
[null,null,null,null,null,"","",null,null,null,"","",null,null,null,"","",null,null,null,"",""]
[null,null,null,null,null,"","",null,null,null,"","",null,null,null,"","",null,null,null,"",""]
[null,null,null,null,null,"","",null,null,null,"","",null,null,null,"","",null,null,null,"",""]
[null,null,null,null,null,"","",null,null,null,"","",null,null,null,"","",null,null,null,"",""]
[null,null,null,null,null,"","",null,null,null,"","",null,null,null,"","",null,null,null,"",""]
[null,null,null,null,null,"","",null,null,null,"","",null,null,null,"","",null,null,null,"",""]
[null,null,null,null,null,"","",null,null,null,"","",null,null,null,"","",null,null,null,"",""]
[null,null,null,null,null,"","",null,null,null,"","",null,null,null,"","",null,null,null,"",""]
[null,null,null,null,null,"","",null,null,null,"","",null,null,null,"","",null,null,null,"",""]
[null,null,null,null,null,"","",null,null,null,"","",null,null,null,"","",null,null,null,"",""]
[null,null,null,null,null,"","",null,null,null,"","",null,null,null,"","",null,null,null,"",""]
[null,null,null,null,null,"","",null,null,null,"","",null,null,null,"","",null,null,null,"",""]
[null,null,null,null,null,"","",null,null,null,"","",null,null,null,"","",null,null,null,"",""]
[null,null,null,null,null,"","",null,null,null,"","",null,null,null,"","",null,null,null,"",""]
[null,null,null,null,null,"","",null,null,null,"","",null,null,null,"","",null,null,null,"",""]
[null,null,null,null,null,"","",null,null,null,"","",null,null,null,"","",null,null,null,"",""]
[null,null,null,null,null,"","",null,null,null,"","",null,null,null,"","",null,null,null,"",""]
[null,null,null,null,null,"","",null,null,null,"","",null,null,null,"","",null,null,null,"",""]
[null,null,null,null,null,"","",null,null,null,"","",null,null,null,"","",null,null,null,"",""]
[null,null,null,null,null,"","",null,null,null,"","",null,null,null,"","",null,null,null,"",""]
[null,null,null,null,null,"","",null,null,null,"","",null,null,null,"","",null,null,null,"",""]
[null,null,null,null,null,"","",null,null,null,"","",null,null,null,"","",null,null,null,"",""]
[null,null,null,null,null,"","",null,null,null,"","",null,null,null,"","",null,null,null,"",""]
[null,null,null,null,null,"","",null,null,null,"","",null,null,null,"","",null,null,null,"",""]
[null,null,null,null,null,"","",null,null,null,"","",null,null,null,"","",null,null,null,"",""]
[null,null,null,null,null,"","",null,null,null,"","",null,null,null,"","",null,null,null,"",""]
[null,null,null,null,null,"","",null,null,null,"","",null,null,null,"","",null,null,null,"",""]
[null,null,null,null,null,"","",null,null,null,"","",null,null,null,"","",null,null,null,"",""]
[null,null,null,null,null,"","",null,null,null,"","",null,null,null,"","",null,null,null,"",""]
[null,null,null,null,null,"","",null,null,null,"","",null,null,null,"","",null,null,null,"",""]
[null,null,null,null,null,"","",null,null,null,"","",null,null,null,"","",null,null,null,"",""]
[null,null,null,null,null,"","",null,null,null,"","",null,null,null,"","",null,null,null,"",""]
[null,null,null,null,null,"","",null,null,null,"","",null,null,null,"","",null,null,null,"",""]
[null,null,null,null,null,"","",null,null,null,"","",null,null,null,"","",null,null,null,"",""]
[null,null,null,null,null,"","",null,null,null,"","",null,null,null,"","",null,null,null,"",""]
[null,null,null,null,null,"","",null,null,null,"","",null,null,null,"","",null,null,null,"",""]
[null,null,null,null,null,"","",null,null,null,"","",null,null,null,"","",null,null,null,"",""]
[null,null,null,null,null,"","",null,null,null,"","",null,null,null,"","",null,null,null,"",""]
[null,null,null,null,null,"","",null,null,null,"","",null,null,null,"","",null,null,null,"",""]
[null,null,null,null,null,"","",null,null,null,"","",null,null,null,"","",null,null,null,"",""]
[null,null,null,null,null,"","",null,null,null,"","",null,null,null,"","",null,null,null,"",""]
[null,null,null,null,null,"","",null,null,null,"","",null,null,null,"","",null,null,null,"",""]
[null,null,null,null,null,"","",null,null,null,"","",null,null,null,"","",null,null,null,"",""]
[null,null,null,null,null,"","",null,null,null,"","",null,null,null,"","",null,null,null,"",""]
[null,null,null,null,null,"","",null,null,null,"","",null,null,null,"","",null,null,null,"",""]
[null,null,null,null,null,"","",null,null,null,"","",null,null,null,"","",null,null,null,"",""]
[null,null,null,null,null,"","",null,null,null,"","",null,null,null,"","",null,null,null,"",""]
[null,null,null,null,null,"","",null,null,null,"","",null,null,null,"","",null,null,null,"",""]
[null,null,null,null,null,"","",null,null,null,"","",null,null,null,"","",null,null,null,"",""]
[null,null,null,null,null,"","",null,null,null,"","",null,null,null,"","",null,null,null,"",""]
[null,null,null,null,null,"","",null,null,null,"","",null,null,null,"","",null,null,null,"",""]
[null,null,null,null,null,"","",null,null,null,"","",null,null,null,"","",null,null,null,"",""]
[null,null,null,null,null,{"$f":"IF(D1030=\"\",\"\",HOUR(D1030-C1030)*60+MINUTE(D1030-C1030))","v":""},{"$f":"IF(F1030=\"\",\"\",IF(F1030/15*$A$1,F1030/15*$B$1))","v":""},null,null,null,{"$f":"IF(I1030=\"\",\"\",HOUR(I1030-H1030)*60+MINUTE(I1030-H1030))","v":""},{"$f":"IF(K1030=\"\",\"\",IF(K1030/15*$A$1,K1030/15*$B$1))","v":""},null,null,null,{"$f":"IF(N1030=\"\",\"\",HOUR(N1030-M1030)*60+MINUTE(N1030-M1030))","v":""},{"$f":"IF(O1030=\"\",\"\",IF(O1030/15*$A$1,O1030/15*$B$1))","v":""},null,null,null,{"$f":"IF(S1030=\"\",\"\",HOUR(S1030-R1030)*60+MINUTE(S1030-R1030))","v":""},{"$f":"IF(U1030=\"\",\"\",IF(U1030/15*$A$1,U1030/15*$B$1))","v":""}]
[null,null,null,null,null,"","",null,null,null,"","",null,null,null,"","",null,null,null,"",""]
[null,null,null,null,null,"","",null,null,null,"","",null,null,null,"","",null,null,null,"",""]
[null,null,null,null,null,"","",null,null,null,"","",null,null,null,"","",null,null,null,"",""]
[null,null,null,null,null,"","",null,null,null,"","",null,null,null,"","",null,null,null,"",""]
[null,null,null,null,null,"","",null,null,null,"","",null,null,null,"","",null,null,null,"",""]
[null,null,null,null,null,"","",null,null,null,"","",null,null,null,"","",null,null,null,"",""]
[null,null,null,null,null,"","",null,null,null,"","",null,null,null,"","",null,null,null,"",""]
[null,null,null,null,null,"","",null,null,null,"","",null,null,null,"","",null,null,null,"",""]
[null,null,null,null,null,"","",null,null,null,"","",null,null,null,"","",null,null,null,"",""]
[null,null,null,null,null,"","",null,null,null,"","",null,null,null,"","",null,null,null,"",""]
[null,null,null,null,null,"","",null,null,null,"","",null,null,null,"","",null,null,null,"",""]
[null,null,null,null,null,"","",null,null,null,"","",null,null,null,"","",null,null,null,"",""]
[null,null,null,null,null,"","",null,null,null,"","",null,null,null,"","",null,null,null,"",""]
[null,null,null,null,null,"","",null,null,null,"","",null,null,null,"","",null,null,null,"",""]
[null,null,null,null,null,"","",null,null,null,"","",null,null,null,"","",null,null,null,"",""]
[null,null,null,null,null,"","",null,null,null,"","",null,null,null,"","",null,null,null,"",""]
[null,null,null,null,null,"","",null,null,null,"","",null,null,null,"","",null,null,null,"",""]
[null,null,null,null,null,"","",null,null,null,"","",null,null,null,"","",null,null,null,"",""]
[null,null,null,null,null,"","",null,null,null,"","",null,null,null,"","",null,null,null,"",""]
[null,null,null,null,null,"","",null,null,null,"","",null,null,null,"","",null,null,null,"",""]
[null,null,null,null,null,"","",null,null,null,"","",null,null,null,"","",null,null,null,"",""]
[null,null,null,null,null,"","",null,null,null,"","",null,null,null,"","",null,null,null,"",""]
[null,null,null,null,null,"","",null,null,null,"","",null,null,null,"","",null,null,null,"",""]
[null,null,null,null,null,"","",null,null,null,"","",null,null,null,"","",null,null,null,"",""]
[null,null,null,null,null,"","",null,null,null,"","",null,null,null,"","",null,null,null,"",""]
[null,null,null,null,null,"","",null,null,null,"","",null,null,null,"","",null,null,null,"",""]
[null,null,null,null,null,"","",null,null,null,"","",null,null,null,"","",null,null,null,"",""]
[null,null,null,null,null,"","",null,null,null,"","",null,null,null,"","",null,null,null,"",""]
[null,null,null,null,null,"","",null,null,null,"","",null,null,null,"","",null,null,null,"",""]
[null,null,null,null,null,"","",null,null,null,"","",null,null,null,"","",null,null,null,"",""]
[null,null,null,null,null,"","",null,null,null,"","",null,null,null,"","",null,null,null,"",""]
[null,null,null,null,null,"","",null,null,null,"","",null,null,null,"","",null,null,null,"",""]
[null,null,null,null,null,"","",null,null,null,"","",null,null,null,"","",null,null,null,"",""]
[null,null,null,null,null,"","",null,null,null,"","",null,null,null,"","",null,null,null,"",""]
[null,null,null,null,null,"","",null,null,null,"","",null,null,null,"","",null,null,null,"",""]
[null,null,null,null,null,"","",null,null,null,"","",null,null,null,"","",null,null,null,"",""]
[null,null,null,null,null,"","",null,null,null,"","",null,null,null,"","",null,null,null,"",""]
[null,null,null,null,null,"","",null,null,null,"","",null,null,null,"","",null,null,null,"",""]
[null,null,null,null,null,"","",null,null,null,"","",null,null,null,"","",null,null,null,"",""]
[null,null,null,null,null,"","",null,null,null,"","",null,null,null,"","",null,null,null,"",""]
[null,null,null,null,null,"","",null,null,null,"","",null,null,null,"","",null,null,null,"",""]
[null,null,null,null,null,"","",null,null,null,"","",null,null,null,"","",null,null,null,"",""]
[null,null,null,null,null,"","",null,null,null,"","",null,null,null,"","",null,null,null,"",""]
[null,null,null,null,null,"","",null,null,null,"","",null,null,null,"","",null,null,null,"",""]
[null,null,null,null,null,"","",null,null,null,"","",null,null,null,"","",null,null,null,"",""]
[null,null,null,null,null,"","",null,null,null,"","",null,null,null,"","",null,null,null,"",""]
[null,null,null,null,null,"","",null,null,null,"","",null,null,null,"","",null,null,null,"",""]
[null,null,null,null,null,"","",null,null,null,"","",null,null,null,"","",null,null,null,"",""]
[null,null,null,null,null,"","",null,null,null,"","",null,null,null,"","",null,null,null,"",""]
[null,null,null,null,null,"","",null,null,null,"","",null,null,null,"","",null,null,null,"",""]
[null,null,null,null,null,"","",null,null,null,"","",null,null,null,"","",null,null,null,"",""]
[null,null,null,null,null,"","",null,null,null,"","",null,null,null,"","",null,null,null,"",""]
[null,null,null,null,null,"","",null,null,null,"","",null,null,null,"","",null,null,null,"",""]
[null,null,null,null,null,"","",null,null,null,"","",null,null,null,"","",null,null,null,"",""]
[null,null,null,null,null,"","",null,null,null,"","",null,null,null,"","",null,null,null,"",""]
[null,null,null,null,null,"","",null,null,null,"","",null,null,null,"","",null,null,null,"",""]
[null,null,null,null,null,"","",null,null,null,"","",null,null,null,"","",null,null,null,"",""]
[null,null,null,null,null,"","",null,null,null,"","",null,null,null,"","",null,null,null,"",""]
[null,null,null,null,null,"","",null,null,null,"","",null,null,null,"","",null,null,null,"",""]
[null,null,null,null,null,"","",null,null,null,"","",null,null,null,"","",null,null,null,"",""]
[null,null,null,null,null,"","",null,null,null,"","",null,null,null,"","",null,null,null,"",""]
[null,null,null,null,null,"","",null,null,null,"","",null,null,null,"","",null,null,null,"",""]
[null,null,null,null,null,"","",null,null,null,"","",null,null,null,"","",null,null,null,"",""]
[null,null,null,null,null,{"$f":"IF(D1094=\"\",\"\",HOUR(D1094-C1094)*60+MINUTE(D1094-C1094))","v":""},{"$f":"IF(F1094=\"\",\"\",IF(F1094/15*$A$1,F1094/15*$B$1))","v":""},null,null,null,{"$f":"IF(I1094=\"\",\"\",HOUR(I1094-H1094)*60+MINUTE(I1094-H1094))","v":""},{"$f":"IF(K1094=\"\",\"\",IF(K1094/15*$A$1,K1094/15*$B$1))","v":""},null,null,null,{"$f":"IF(N1094=\"\",\"\",HOUR(N1094-M1094)*60+MINUTE(N1094-M1094))","v":""},{"$f":"IF(O1094=\"\",\"\",IF(O1094/15*$A$1,O1094/15*$B$1))","v":""},null,null,null,{"$f":"IF(S1094=\"\",\"\",HOUR(S1094-R1094)*60+MINUTE(S1094-R1094))","v":""},{"$f":"IF(U1094=\"\",\"\",IF(U1094/15*$A$1,U1094/15*$B$1))","v":""}]
[null,null,null,null,null,"","",null,null,null,"","",null,null,null,"","",null,null,null,"",""]
[null,null,null,null,null,"","",null,null,null,"","",null,null,null,"","",null,null,null,"",""]
[null,null,null,null,null,"","",null,null,null,"","",null,null,null,"","",null,null,null,"",""]
[null,null,null,null,null,"","",null,null,null,"","",null,null,null,"","",null,null,null,"",""]
[null,null,null,null,null,"","",null,null,null,"","",null,null,null,"","",null,null,null,"",""]
[null,null,null,null,null,"","",null,null,null,"","",null,null,null,"","",null,null,null,"",""]
[null,null,null,null,null,"","",null,null,null,"","",null,null,null,"","",null,null,null,"",""]
[null,null,null,null,null,"","",null,null,null,"","",null,null,null,"","",null,null,null,"",""]
[null,null,null,null,null,"","",null,null,null,"","",null,null,null,"","",null,null,null,"",""]
[null,null,null,null,null,"","",null,null,null,"","",null,null,null,"","",null,null,null,"",""]
[null,null,null,null,null,"","",null,null,null,"","",null,null,null,"","",null,null,null,"",""]
[null,null,null,null,null,"","",null,null,null,"","",null,null,null,"","",null,null,null,"",""]
[null,null,null,null,null,"","",null,null,null,"","",null,null,null,"","",null,null,null,"",""]
[null,null,null,null,null,"","",null,null,null,"","",null,null,null,"","",null,null,null,"",""]
[null,null,null,null,null,"","",null,null,null,"","",null,null,null,"","",null,null,null,"",""]
[null,null,null,null,null,"","",null,null,null,"","",null,null,null,"","",null,null,null,"",""]
[null,null,null,null,null,"","",null,null,null,"","",null,null,null,"","",null,null,null,"",""]
[null,null,null,null,null,"","",null,null,null,"","",null,null,null,"","",null,null,null,"",""]
[null,null,null,null,null,"","",null,null,null,"","",null,null,null,"","",null,null,null,"",""]
[null,null,null,null,null,"","",null,null,null,"","",null,null,null,"","",null,null,null,"",""]
[null,null,null,null,null,"","",null,null,null,"","",null,null,null,"","",null,null,null,"",""]
[null,null,null,null,null,"","",null,null,null,"","",null,null,null,"","",null,null,null,"",""]
[null,null,null,null,null,"","",null,null,null,"","",null,null,null,"","",null,null,null,"",""]
[null,null,null,null,null,"","",null,null,null,"","",null,null,null,"","",null,null,null,"",""]
[null,null,null,null,null,"","",null,null,null,"","",null,null,null,"","",null,null,null,"",""]
[null,null,null,null,null,"","",null,null,null,"","",null,null,null,"","",null,null,null,"",""]
[null,null,null,null,null,"","",null,null,null,"","",null,null,null,"","",null,null,null,"",""]
[null,null,null,null,null,"","",null,null,null,"","",null,null,null,"","",null,null,null,"",""]
[null,null,null,null,null,"","",null,null,null,"","",null,null,null,"","",null,null,null,"",""]
[null,null,null,null,null,"","",null,null,null,"","",null,null,null,"","",null,null,null,"",""]
[null,null,null,null,null,"","",null,null,null,"","",null,null,null,"","",null,null,null,"",""]
[null,null,null,null,null,"","",null,null,null,"","",null,null,null,"","",null,null,null,"",""]
[null,null,null,null,null,"","",null,null,null,"","",null,null,null,"","",null,null,null,"",""]
[null,null,null,null,null,"","",null,null,null,"","",null,null,null,"","",null,null,null,"",""]
[null,null,null,null,null,"","",null,null,null,"","",null,null,null,"","",null,null,null,"",""]
[null,null,null,null,null,"","",null,null,null,"","",null,null,null,"","",null,null,null,"",""]
[null,null,null,null,null,"","",null,null,null,"","",null,null,null,"","",null,null,null,"",""]
[null,null,null,null,null,"","",null,null,null,"","",null,null,null,"","",null,null,null,"",""]
[null,null,null,null,null,"","",null,null,null,"","",null,null,null,"","",null,null,null,"",""]
[null,null,null,null,null,"","",null,null,null,"","",null,null,null,"","",null,null,null,"",""]
[null,null,null,null,null,"","",null,null,null,"","",null,null,null,"","",null,null,null,"",""]
[null,null,null,null,null,"","",null,null,null,"","",null,null,null,"","",null,null,null,"",""]
[null,null,null,null,null,"","",null,null,null,"","",null,null,null,"","",null,null,null,"",""]
[null,null,null,null,null,"","",null,null,null,"","",null,null,null,"","",null,null,null,"",""]
[null,null,null,null,null,"","",null,null,null,"","",null,null,null,"","",null,null,null,"",""]
[null,null,null,null,null,"","",null,null,null,"","",null,null,null,"","",null,null,null,"",""]
[null,null,null,null,null,"","",null,null,null,"","",null,null,null,"","",null,null,null,"",""]
[null,null,null,null,null,"","",null,null,null,"","",null,null,null,"","",null,null,null,"",""]
[null,null,null,null,null,"","",null,null,null,"","",null,null,null,"","",null,null,null,"",""]
[null,null,null,null,null,"","",null,null,null,"","",null,null,null,"","",null,null,null,"",""]
[null,null,null,null,null,"","",null,null,null,"","",null,null,null,"","",null,null,null,"",""]
[null,null,null,null,null,"","",null,null,null,"","",null,null,null,"","",null,null,null,"",""]
[null,null,null,null,null,"","",null,null,null,"","",null,null,null,"","",null,null,null,"",""]
[null,null,null,null,null,"","",null,null,null,"","",null,null,null,"","",null,null,null,"",""]
[null,null,null,null,null,"","",null,null,null,"","",null,null,null,"","",null,null,null,"",""]
[null,null,null,null,null,"","",null,null,null,"","",null,null,null,"","",null,null,null,"",""]
[null,null,null,null,null,"","",null,null,null,"","",null,null,null,"","",null,null,null,"",""]
[null,null,null,null,null,"","",null,null,null,"","",null,null,null,"","",null,null,null,"",""]
[null,null,null,null,null,"","",null,null,null,"","",null,null,null,"","",null,null,null,"",""]
[null,null,null,null,null,"","",null,null,null,"","",null,null,null,"","",null,null,null,"",""]
[null,null,null,null,null,"","",null,null,null,"","",null,null,null,"","",null,null,null,"",""]
[null,null,null,null,null,"","",null,null,null,"","",null,null,null,"","",null,null,null,"",""]
[null,null,null,null,null,"","",null,null,null,"","",null,null,null,"","",null,null,null,"",""]
[null,null,null,null,null,{"$f":"IF(D1158=\"\",\"\",HOUR(D1158-C1158)*60+MINUTE(D1158-C1158))","v":""},{"$f":"IF(F1158=\"\",\"\",IF(F1158/15*$A$1,F1158/15*$B$1))","v":""},null,null,null,{"$f":"IF(I1158=\"\",\"\",HOUR(I1158-H1158)*60+MINUTE(I1158-H1158))","v":""},{"$f":"IF(K1158=\"\",\"\",IF(K1158/15*$A$1,K1158/15*$B$1))","v":""},null,null,null,{"$f":"IF(N1158=\"\",\"\",HOUR(N1158-M1158)*60+MINUTE(N1158-M1158))","v":""},{"$f":"IF(O1158=\"\",\"\",IF(O1158/15*$A$1,O1158/15*$B$1))","v":""},null,null,null,{"$f":"IF(S1158=\"\",\"\",HOUR(S1158-R1158)*60+MINUTE(S1158-R1158))","v":""},{"$f":"IF(U1158=\"\",\"\",IF(U1158/15*$A$1,U1158/15*$B$1))","v":""}]
[null,null,null,null,null,"","",null,null,null,"","",null,null,null,"","",null,null,null,"",""]
[null,null,null,null,null,"","",null,null,null,"","",null,null,null,"","",null,null,null,"",""]
[null,null,null,null,null,"","",null,null,null,"","",null,null,null,"","",null,null,null,"",""]
[null,null,null,null,null,"","",null,null,null,"","",null,null,null,"","",null,null,null,"",""]
[null,null,null,null,null,"","",null,null,null,"","",null,null,null,"","",null,null,null,"",""]
[null,null,null,null,null,"","",null,null,null,"","",null,null,null,"","",null,null,null,"",""]
[null,null,null,null,null,"","",null,null,null,"","",null,null,null,"","",null,null,null,"",""]
[null,null,null,null,null,"","",null,null,null,"","",null,null,null,"","",null,null,null,"",""]
[null,null,null,null,null,"","",null,null,null,"","",null,null,null,"","",null,null,null,"",""]
[null,null,null,null,null,"","",null,null,null,"","",null,null,null,"","",null,null,null,"",""]
[null,null,null,null,null,"","",null,null,null,"","",null,null,null,"","",null,null,null,"",""]
[null,null,null,null,null,"","",null,null,null,"","",null,null,null,"","",null,null,null,"",""]
[null,null,null,null,null,"","",null,null,null,"","",null,null,null,"","",null,null,null,"",""]
[null,null,null,null,null,"","",null,null,null,"","",null,null,null,"","",null,null,null,"",""]
[null,null,null,null,null,"","",null,null,null,"","",null,null,null,"","",null,null,null,"",""]
[null,null,null,null,null,"","",null,null,null,"","",null,null,null,"","",null,null,null,"",""]
[null,null,null,null,null,"","",null,null,null,"","",null,null,null,"","",null,null,null,"",""]
[null,null,null,null,null,"","",null,null,null,"","",null,null,null,"","",null,null,null,"",""]
[null,null,null,null,null,"","",null,null,null,"","",null,null,null,"","",null,null,null,"",""]
[null,null,null,null,null,"","",null,null,null,"","",null,null,null,"","",null,null,null,"",""]
[null,null,null,null,null,"","",null,null,null,"","",null,null,null,"","",null,null,null,"",""]
[null,null,null,null,null,"","",null,null,null,"","",null,null,null,"","",null,null,null,"",""]
[null,null,null,null,null,"","",null,null,null,"","",null,null,null,"","",null,null,null,"",""]
[null,null,null,null,null,"","",null,null,null,"","",null,null,null,"","",null,null,null,"",""]
[null,null,null,null,null,"","",null,null,null,"","",null,null,null,"","",null,null,null,"",""]
[null,null,null,null,null,"","",null,null,null,"","",null,null,null,"","",null,null,null,"",""]
[null,null,null,null,null,"","",null,null,null,"","",null,null,null,"","",null,null,null,"",""]
[null,null,null,null,null,"","",null,null,null,"","",null,null,null,"","",null,null,null,"",""]
[null,null,null,null,null,"","",null,null,null,"","",null,null,null,"","",null,null,null,"",""]
[null,null,null,null,null,"","",null,null,null,"","",null,null,null,"","",null,null,null,"",""]
[null,null,null,null,null,"","",null,null,null,"","",null,null,null,"","",null,null,null,"",""]
[null,null,null,null,null,"","",null,null,null,"","",null,null,null,"","",null,null,null,"",""]
[null,null,null,null,null,"","",null,null,null,"","",null,null,null,"","",null,null,null,"",""]
[null,null,null,null,null,"","",null,null,null,"","",null,null,null,"","",null,null,null,"",""]
[null,null,null,null,null,"","",null,null,null,"","",null,null,null,"","",null,null,null,"",""]
[null,null,null,null,null,"","",null,null,null,"","",null,null,null,"","",null,null,null,"",""]
[null,null,null,null,null,"","",null,null,null,"","",null,null,null,"","",null,null,null,"",""]
[null,null,null,null,null,"","",null,null,null,"","",null,null,null,"","",null,null,null,"",""]
[null,null,null,null,null,"","",null,null,null,"","",null,null,null,"","",null,null,null,"",""]
[null,null,null,null,null,"","",null,null,null,"","",null,null,null,"","",null,null,null,"",""]
[null,null,null,null,null,"","",null,null,null,"","",null,null,null,"","",null,null,null,"",""]
[null,null,null,null,null,"","",null,null,null,"","",null,null,null,"","",null,null,null,"",""]